Publisher Label,Publisher URI,"Supplier ID","Supplier","Invoice No.","Amount £","Purpose","Transaction Number","Payment Date","Organisational Unit","Cost Centre(T)","Internal Category Number"
"Wolverhampton City Council","http://opendatacommunities.org/id/metropolitan-district-council/wolverhampton","704657","James Lister & Sons Limited","0100/02794026","142.16","Protective Clothing","130212250","11/04/2018","Facilities Management","Culwell Street Depot","R4200"
"Wolverhampton City Council","http://opendatacommunities.org/id/metropolitan-district-council/wolverhampton","704657","James Lister & Sons Limited","0100/02798506","11.22","Protective Clothing","130212634","18/04/2018","Facilities Management","Culwell Street Depot","R4200"
"Wolverhampton City Council","http://opendatacommunities.org/id/metropolitan-district-council/wolverhampton","704657","James Lister & Sons Limited","240/02795304","98.82","Equipment - Purchase","190443943","04/04/2018","Fleet Services","Fleet Management","R4000"
"Wolverhampton City Council","http://opendatacommunities.org/id/metropolitan-district-council/wolverhampton","704657","James Lister & Sons Limited","0100/02798505","157.50","Protective Clothing","130212633","25/04/2018","Public Protection","EHTS Operational Costs","R4200"
"Wolverhampton City Council","http://opendatacommunities.org/id/metropolitan-district-council/wolverhampton","704657","James Lister & Sons Limited","0100/02794028","195.54","Protective Clothing","130211047","25/04/2018","ICTS","Strategic ICTS (ICT Service Budget)","R4200"
"Wolverhampton City Council","http://opendatacommunities.org/id/metropolitan-district-council/wolverhampton","704657","James Lister & Sons Limited","0175/02800783","19.40","R&M - Departmental planned (internal)","130213722","25/04/2018","Bereavement Services","Cemeteries","R2000"
"Wolverhampton City Council","http://opendatacommunities.org/id/metropolitan-district-council/wolverhampton","704657","James Lister & Sons Limited","0100/02795963","35.52","Protective Clothing","130211583","06/04/2018","Highways Maintenance","Patching","R4200"
"Wolverhampton City Council","http://opendatacommunities.org/id/metropolitan-district-council/wolverhampton","704657","James Lister & Sons Limited","0100/02795964","32.50","Protective Clothing","130211584","04/04/2018","Markets","Wholesale Market Facilities Management","R4200"
"Wolverhampton City Council","http://opendatacommunities.org/id/metropolitan-district-council/wolverhampton","704657","James Lister & Sons Limited","0100/02795961","18.50","Protective Clothing","130211581","04/04/2018","ICTS","Strategic ICTS (ICT Service Budget)","R4200"
"Wolverhampton City Council","http://opendatacommunities.org/id/metropolitan-district-council/wolverhampton","704657","James Lister & Sons Limited","240/02795303","43.20","Equipment - Purchase","190443942","04/04/2018","Fleet Services","Fleet Management","R4000"
"Wolverhampton City Council","http://opendatacommunities.org/id/metropolitan-district-council/wolverhampton","704657","James Lister & Sons Limited","240/02795310","64.46","Equipment - Purchase","190443949","04/04/2018","Fleet Services","Fleet Management","R4000"
"Wolverhampton City Council","http://opendatacommunities.org/id/metropolitan-district-council/wolverhampton","704657","James Lister & Sons Limited","240/02796642","137.50","Services - Professional Fees","190448760","18/04/2018","Fleet Services","Fleet Management","R4400"
"Wolverhampton City Council","http://opendatacommunities.org/id/metropolitan-district-council/wolverhampton","704657","James Lister & Sons Limited","0100/02800776","186.00","Protective Clothing","130213715","25/04/2018","Environmental Maintenance","Parks / Open Spaces - Repairs & Maintenance","R4200"
"Wolverhampton City Council","http://opendatacommunities.org/id/metropolitan-district-council/wolverhampton","704657","James Lister & Sons Limited","0100/02800776","-186.00","Protective Clothing","130213715","25/04/2018","Environmental Maintenance","Parks / Open Spaces - Repairs & Maintenance","R4200"
"Wolverhampton City Council","http://opendatacommunities.org/id/metropolitan-district-council/wolverhampton","704657","James Lister & Sons Limited","0100/02800776","180.00","Protective Clothing","130213715","25/04/2018","Environmental Maintenance","Parks / Open Spaces - Repairs & Maintenance","R4200"
"Wolverhampton City Council","http://opendatacommunities.org/id/metropolitan-district-council/wolverhampton","704657","James Lister & Sons Limited","0100/02795955","27.50","Protective Clothing","130211575","06/04/2018","Highways Maintenance","Patching","R4200"
"Wolverhampton City Council","http://opendatacommunities.org/id/metropolitan-district-council/wolverhampton","704657","James Lister & Sons Limited","0100/ 02657926","40.18","Protective Clothing","130149662","20/04/2018","Independent Living Service","Independent Living Service","R4200"
"Wolverhampton City Council","http://opendatacommunities.org/id/metropolitan-district-council/wolverhampton","704657","James Lister & Sons Limited","0100/02795957","11.40","Protective Clothing","130211577","04/04/2018","Cleaning","Cleaning of Buildings - General","R4200"
"Wolverhampton City Council","http://opendatacommunities.org/id/metropolitan-district-council/wolverhampton","704657","James Lister & Sons Limited","240/02795307","32.20","Equipment - Purchase","190443946","04/04/2018","Fleet Services","Fleet Management","R4000"
"Wolverhampton City Council","http://opendatacommunities.org/id/metropolitan-district-council/wolverhampton","704657","James Lister & Sons Limited","240/02795306","229.28","Equipment - Purchase","190443945","04/04/2018","Fleet Services","Fleet Management","R4000"
"Wolverhampton City Council","http://opendatacommunities.org/id/metropolitan-district-council/wolverhampton","704657","James Lister & Sons Limited","0100/02795962","27.60","Protective Clothing","130211582","04/04/2018","Markets","Wolverhampton Indoor and Open Market","R4200"
"Wolverhampton City Council","http://opendatacommunities.org/id/metropolitan-district-council/wolverhampton","704657","James Lister & Sons Limited","0100/02795956","9.68","Protective Clothing","130211576","04/04/2018","Environmental Maintenance","Street Cleansing Overheads","R4200"
"Wolverhampton City Council","http://opendatacommunities.org/id/metropolitan-district-council/wolverhampton","704657","James Lister & Sons Limited","175/02784717","47.68","Equipment - Purchase","190448756","18/04/2018","Fleet Services","Fleet Management","R4000"
"Wolverhampton City Council","http://opendatacommunities.org/id/metropolitan-district-council/wolverhampton","704657","James Lister & Sons Limited","0100/02800782","90.15","Protective Clothing","130213721","27/04/2018","Maintenance Programme","Civic Centre Repairs & Maintenance","R4200"
"Wolverhampton City Council","http://opendatacommunities.org/id/metropolitan-district-council/wolverhampton","704657","James Lister & Sons Limited","0100/02800779","59.10","Protective Clothing","130213718","25/04/2018","Cleaning","Cleaning of Buildings - General","R4200"
"Wolverhampton City Council","http://opendatacommunities.org/id/metropolitan-district-council/wolverhampton","704657","James Lister & Sons Limited","0100/02800775","34.76","Protective Clothing","130213714","25/04/2018","Fleet Services","Passenger Transport - General","R4200"
"Wolverhampton City Council","http://opendatacommunities.org/id/metropolitan-district-council/wolverhampton","704659","James Wilkes Limited","5616","122,431.39","Construction and Conversion","130212938","18/04/2018","-","Primary Expansion Programme","C1100"
"Wolverhampton City Council","http://opendatacommunities.org/id/metropolitan-district-council/wolverhampton","704675","JCDECAUX UK Limited","SF/I087949","385.00","Marketing \ Non-staff advertising","130211123","18/04/2018","Housing","Wholly Owned Company - Operations","R4317"
"Wolverhampton City Council","http://opendatacommunities.org/id/metropolitan-district-council/wolverhampton","704675","JCDECAUX UK Limited","SF/I087933","385.00","Marketing \ Non-staff advertising","130211789","18/04/2018","Markets","Wolverhampton Indoor and Open Market","R4317"
"Wolverhampton City Council","http://opendatacommunities.org/id/metropolitan-district-council/wolverhampton","704690","Jenx Limited","210919","1,841.60","Equipment - Purchase","130209740","11/04/2018","Independent Living Service","Independent Living Service","R4000"
"Wolverhampton City Council","http://opendatacommunities.org/id/metropolitan-district-council/wolverhampton","704703","Jim�S Transfleet","29032018A","1,786.20","Client Transport","130211586","06/04/2018","School Planning & Resources","Special - Transport","R3042"
"Wolverhampton City Council","http://opendatacommunities.org/id/metropolitan-district-council/wolverhampton","704703","Jim�S Transfleet","29032018","1,671.68","Client Transport","130211585","06/04/2018","School Planning & Resources","Special - Transport","R3042"
"Wolverhampton City Council","http://opendatacommunities.org/id/metropolitan-district-council/wolverhampton","704722","Johal Dairies Limited","1095239","31.32","Provisions (Resale)","130212043","18/04/2018","Older People Provider Services","Blakenhall Resource Centre","R4102"
"Wolverhampton City Council","http://opendatacommunities.org/id/metropolitan-district-council/wolverhampton","704722","Johal Dairies Limited","1095171","118.87","Provisions (Not for resale)","130212038","18/04/2018","Older People Provider Services","Bradley Lodge Resource Centre","R4101"
"Wolverhampton City Council","http://opendatacommunities.org/id/metropolitan-district-council/wolverhampton","704722","Johal Dairies Limited","1076130","132.01","Provisions (Not for resale)","130208012","04/04/2018","Older People Provider Services","Bradley Lodge Resource Centre","R4101"
"Wolverhampton City Council","http://opendatacommunities.org/id/metropolitan-district-council/wolverhampton","704722","Johal Dairies Limited","1091272","34.71","Provisions (Not for resale)","130212035","11/04/2018","Learning Disability Provider","Duke Street Bungalows","R4101"
"Wolverhampton City Council","http://opendatacommunities.org/id/metropolitan-district-council/wolverhampton","704722","Johal Dairies Limited","1082746","25.57","Provisions (Not for resale)","130212020","11/04/2018","Learning Disability Provider","Duke Street Bungalows","R4101"
"Wolverhampton City Council","http://opendatacommunities.org/id/metropolitan-district-council/wolverhampton","704722","Johal Dairies Limited","1099593","132.01","Provisions (Not for resale)","130212045","25/04/2018","Older People Provider Services","Bradley Lodge Resource Centre","R4101"
"Wolverhampton City Council","http://opendatacommunities.org/id/metropolitan-district-council/wolverhampton","704722","Johal Dairies Limited","1099666","41.99","Provisions (Not for resale)","130212051","25/04/2018","Adult Education","Caf�","R4101"
"Wolverhampton City Council","http://opendatacommunities.org/id/metropolitan-district-council/wolverhampton","704722","Johal Dairies Limited","1082731","125.61","Provisions (Not for resale)","130212017","25/04/2018","Older People Provider Services","Bradley Lodge Resource Centre","R4101"
"Wolverhampton City Council","http://opendatacommunities.org/id/metropolitan-district-council/wolverhampton","704722","Johal Dairies Limited","1086096","10.82","Provisions (Resale)","130212029","13/04/2018","Older People Provider Services","Blakenhall Resource Centre","R4102"
"Wolverhampton City Council","http://opendatacommunities.org/id/metropolitan-district-council/wolverhampton","704722","Johal Dairies Limited","1086040","102.42","Provisions (Not for resale)","130212025","06/04/2018","Visitor Economy","Bantock - Tea Rooms","R4101"
"Wolverhampton City Council","http://opendatacommunities.org/id/metropolitan-district-council/wolverhampton","704722","Johal Dairies Limited","1079227","104.48","Provisions (Not for resale)","130208019","04/04/2018","Older People Provider Services","Bradley Lodge Resource Centre","R4101"
"Wolverhampton City Council","http://opendatacommunities.org/id/metropolitan-district-council/wolverhampton","704722","Johal Dairies Limited","1095187","34.71","Provisions (Not for resale)","130212042","18/04/2018","Learning Disability Provider","Duke Street Bungalows","R4101"
"Wolverhampton City Council","http://opendatacommunities.org/id/metropolitan-district-council/wolverhampton","704722","Johal Dairies Limited","1091269","81.54","Provisions (Not for resale)","130212032","11/04/2018","Visitor Economy","Bantock - Tea Rooms","R4101"
"Wolverhampton City Council","http://opendatacommunities.org/id/metropolitan-district-council/wolverhampton","704722","Johal Dairies Limited","1091270","20.28","Provisions (Not for resale)","130212033","11/04/2018","Learning Disability Provider","Duke Street Bungalows","R4101"
"Wolverhampton City Council","http://opendatacommunities.org/id/metropolitan-district-council/wolverhampton","704722","Johal Dairies Limited","1086044","34.71","Provisions (Not for resale)","130212028","11/04/2018","Learning Disability Provider","Duke Street Bungalows","R4101"
"Wolverhampton City Council","http://opendatacommunities.org/id/metropolitan-district-council/wolverhampton","704722","Johal Dairies Limited","1099605","29.34","Provisions (Not for resale)","130212046","25/04/2018","Visitor Economy","Bantock - Tea Rooms","R4101"
"Wolverhampton City Council","http://opendatacommunities.org/id/metropolitan-district-council/wolverhampton","704722","Johal Dairies Limited","1099605","79.10","Provisions (Not for resale)","130212046","25/04/2018","Visitor Economy","Bantock - Tea Rooms","R4101"
"Wolverhampton City Council","http://opendatacommunities.org/id/metropolitan-district-council/wolverhampton","704722","Johal Dairies Limited","1099608","25.57","Provisions (Not for resale)","130212048","25/04/2018","Learning Disability Provider","Duke Street Bungalows","R4101"
"Wolverhampton City Council","http://opendatacommunities.org/id/metropolitan-district-council/wolverhampton","704722","Johal Dairies Limited","1091258","132.01","Provisions (Not for resale)","130212031","25/04/2018","Older People Provider Services","Bradley Lodge Resource Centre","R4101"
"Wolverhampton City Council","http://opendatacommunities.org/id/metropolitan-district-council/wolverhampton","704722","Johal Dairies Limited","1082804","33.40","Provisions (Not for resale)","130212023","25/04/2018","Adult Education","Caf�","R4101"
"Wolverhampton City Council","http://opendatacommunities.org/id/metropolitan-district-council/wolverhampton","704722","Johal Dairies Limited","1086043","25.57","Provisions (Not for resale)","130212027","11/04/2018","Learning Disability Provider","Duke Street Bungalows","R4101"
"Wolverhampton City Council","http://opendatacommunities.org/id/metropolitan-district-council/wolverhampton","704722","Johal Dairies Limited","1082745","20.28","Provisions (Not for resale)","130212019","11/04/2018","Learning Disability Provider","Duke Street Bungalows","R4101"
"Wolverhampton City Council","http://opendatacommunities.org/id/metropolitan-district-council/wolverhampton","704722","Johal Dairies Limited","1095186","25.57","Provisions (Not for resale)","130212041","18/04/2018","Learning Disability Provider","Duke Street Bungalows","R4101"
"Wolverhampton City Council","http://opendatacommunities.org/id/metropolitan-district-council/wolverhampton","704722","Johal Dairies Limited","1095183","95.90","Provisions (Not for resale)","130212039","18/04/2018","Visitor Economy","Bantock - Tea Rooms","R4101"
"Wolverhampton City Council","http://opendatacommunities.org/id/metropolitan-district-council/wolverhampton","704722","Johal Dairies Limited","1091329","34.19","Provisions (Not for resale)","130212037","25/04/2018","Adult Education","Caf�","R4101"
"Wolverhampton City Council","http://opendatacommunities.org/id/metropolitan-district-council/wolverhampton","704722","Johal Dairies Limited","1099609","34.71","Provisions (Not for resale)","130212049","25/04/2018","Learning Disability Provider","Duke Street Bungalows","R4101"
"Wolverhampton City Council","http://opendatacommunities.org/id/metropolitan-district-council/wolverhampton","704722","Johal Dairies Limited","1091324","21.88","Provisions (Resale)","130212036","13/04/2018","Older People Provider Services","Blakenhall Resource Centre","R4102"
"Wolverhampton City Council","http://opendatacommunities.org/id/metropolitan-district-council/wolverhampton","704722","Johal Dairies Limited","1082799","21.88","Provisions (Resale)","130212022","13/04/2018","Older People Provider Services","Blakenhall Resource Centre","R4102"
"Wolverhampton City Council","http://opendatacommunities.org/id/metropolitan-district-council/wolverhampton","704722","Johal Dairies Limited","1082743","90.80","Provisions (Not for resale)","130212018","06/04/2018","Visitor Economy","Bantock - Tea Rooms","R4101"
"Wolverhampton City Council","http://opendatacommunities.org/id/metropolitan-district-council/wolverhampton","704722","Johal Dairies Limited","1095185","20.28","Provisions (Not for resale)","130212040","18/04/2018","Learning Disability Provider","Duke Street Bungalows","R4101"
"Wolverhampton City Council","http://opendatacommunities.org/id/metropolitan-district-council/wolverhampton","704722","Johal Dairies Limited","1086042","20.28","Provisions (Not for resale)","130212026","11/04/2018","Learning Disability Provider","Duke Street Bungalows","R4101"
"Wolverhampton City Council","http://opendatacommunities.org/id/metropolitan-district-council/wolverhampton","704722","Johal Dairies Limited","1091271","25.57","Provisions (Not for resale)","130212034","11/04/2018","Learning Disability Provider","Duke Street Bungalows","R4101"
"Wolverhampton City Council","http://opendatacommunities.org/id/metropolitan-district-council/wolverhampton","704722","Johal Dairies Limited","1082747","34.71","Provisions (Not for resale)","130212021","11/04/2018","Learning Disability Provider","Duke Street Bungalows","R4101"
"Wolverhampton City Council","http://opendatacommunities.org/id/metropolitan-district-council/wolverhampton","704722","Johal Dairies Limited","W1/3022018","22,892.60","School Milk","130211124","04/04/2018","Catering","Education Catering - General Overheads","R4104"
"Wolverhampton City Council","http://opendatacommunities.org/id/metropolitan-district-council/wolverhampton","704722","Johal Dairies Limited","5620032018","1,034.85","Provisions (Resale)","130214256","27/04/2018","Catering","Civic Centre Catering","R4102"
"Wolverhampton City Council","http://opendatacommunities.org/id/metropolitan-district-council/wolverhampton","704722","Johal Dairies Limited","1099661","16.17","Provisions (Resale)","130212050","25/04/2018","Older People Provider Services","Blakenhall Resource Centre","R4102"
"Wolverhampton City Council","http://opendatacommunities.org/id/metropolitan-district-council/wolverhampton","704722","Johal Dairies Limited","1086028","129.25","Provisions (Not for resale)","130212024","25/04/2018","Older People Provider Services","Bradley Lodge Resource Centre","R4101"
"Wolverhampton City Council","http://opendatacommunities.org/id/metropolitan-district-council/wolverhampton","704722","Johal Dairies Limited","1099607","20.28","Provisions (Not for resale)","130212047","25/04/2018","Learning Disability Provider","Duke Street Bungalows","R4101"
"Wolverhampton City Council","http://opendatacommunities.org/id/metropolitan-district-council/wolverhampton","704722","Johal Dairies Limited","1086101","33.45","Provisions (Not for resale)","130212030","25/04/2018","Adult Education","Caf�","R4101"
"Wolverhampton City Council","http://opendatacommunities.org/id/metropolitan-district-council/wolverhampton","704722","Johal Dairies Limited","1095244","50.22","Provisions (Not for resale)","130212044","25/04/2018","Adult Education","Caf�","R4101"
"Wolverhampton City Council","http://opendatacommunities.org/id/metropolitan-district-council/wolverhampton","704731","John Knight Interiors","13442WC008","454.50","Furniture","130212470","13/04/2018","Early Intervention","EIP Locality 1 - Eastfields","R4004"
"Wolverhampton City Council","http://opendatacommunities.org/id/metropolitan-district-council/wolverhampton","704731","John Knight Interiors","13434WC008","542.50","Furniture","130211587","04/04/2018","Early Intervention","EIP Locality 1 - Eastfields","R4004"
"Wolverhampton City Council","http://opendatacommunities.org/id/metropolitan-district-council/wolverhampton","704731","John Knight Interiors","13440WC008","4,265.30","Equipment - Purchase","130212252","11/04/2018","Early Intervention","EIP Locality 8 � Children�s Village","R4000"
"Wolverhampton City Council","http://opendatacommunities.org/id/metropolitan-district-council/wolverhampton","704731","John Knight Interiors","13441WC008","125.45","Equipment - Purchase","130212469","25/04/2018","Early Intervention","EIP Locality 7 � Low Hill","R4000"
"Wolverhampton City Council","http://opendatacommunities.org/id/metropolitan-district-council/wolverhampton","704731","John Knight Interiors","13439WC008","6,583.98","Furniture","130212052","11/04/2018","Early Intervention","EIP Locality 1 - Eastfields","R4004"
"Wolverhampton City Council","http://opendatacommunities.org/id/metropolitan-district-council/wolverhampton","704745","Johnson Poole & Bloomer Limited","SC24637","1,625.00","Construction and Conversion","130213723","20/04/2018","-","Site Remediation Farndale","C1100"
"Wolverhampton City Council","http://opendatacommunities.org/id/metropolitan-district-council/wolverhampton","704745","Johnson Poole & Bloomer Limited","63892","5,370.77","Services - Professional Fees","130212054","25/04/2018","School Planning & Resources","Primary Expansion Feasibility Work","R4400"
"Wolverhampton City Council","http://opendatacommunities.org/id/metropolitan-district-council/wolverhampton","704745","Johnson Poole & Bloomer Limited","63879","6,621.42","Services - Professional Fees","130209181","04/04/2018","School Planning & Resources","Primary Expansion Feasibility Work","R4400"
"Wolverhampton City Council","http://opendatacommunities.org/id/metropolitan-district-council/wolverhampton","704745","Johnson Poole & Bloomer Limited","63889","1,770.00","External Professional Fees","130212053","11/04/2018","-","GF - LGF Feasibility","C6002"
"Wolverhampton City Council","http://opendatacommunities.org/id/metropolitan-district-council/wolverhampton","704748","Johnston Sweepers Limited","61606996","87.60","Equipment - Purchase","190449719","20/04/2018","Fleet Services","Fleet Management","R4000"
"Wolverhampton City Council","http://opendatacommunities.org/id/metropolitan-district-council/wolverhampton","704748","Johnston Sweepers Limited","61601057","179.17","Equipment - Purchase","190441917","04/04/2018","Fleet Services","Fleet Management","R4000"
"Wolverhampton City Council","http://opendatacommunities.org/id/metropolitan-district-council/wolverhampton","704748","Johnston Sweepers Limited","61606007","260.22","Equipment - Purchase","190451985","27/04/2018","Fleet Services","Fleet Management","R4000"
"Wolverhampton City Council","http://opendatacommunities.org/id/metropolitan-district-council/wolverhampton","704748","Johnston Sweepers Limited","61606007","27.86","Equipment - Purchase","190451985","27/04/2018","Fleet Services","Fleet Management","R4000"
"Wolverhampton City Council","http://opendatacommunities.org/id/metropolitan-district-council/wolverhampton","704748","Johnston Sweepers Limited","61610378","20.00","Equipment - Purchase","190451989","27/04/2018","Fleet Services","Fleet Management","R4000"
"Wolverhampton City Council","http://opendatacommunities.org/id/metropolitan-district-council/wolverhampton","704748","Johnston Sweepers Limited","61610416","6.01","Equipment - Purchase","190451990","27/04/2018","Fleet Services","Fleet Management","R4000"
"Wolverhampton City Council","http://opendatacommunities.org/id/metropolitan-district-council/wolverhampton","704748","Johnston Sweepers Limited","61610416","3.71","Equipment - Purchase","190451990","27/04/2018","Fleet Services","Fleet Management","R4000"
"Wolverhampton City Council","http://opendatacommunities.org/id/metropolitan-district-council/wolverhampton","704748","Johnston Sweepers Limited","61610416","4.33","Equipment - Purchase","190451990","27/04/2018","Fleet Services","Fleet Management","R4000"
"Wolverhampton City Council","http://opendatacommunities.org/id/metropolitan-district-council/wolverhampton","704748","Johnston Sweepers Limited","61610416","4.33","Equipment - Purchase","190451990","27/04/2018","Fleet Services","Fleet Management","R4000"
"Wolverhampton City Council","http://opendatacommunities.org/id/metropolitan-district-council/wolverhampton","704748","Johnston Sweepers Limited","61610416","2.20","Equipment - Purchase","190451990","27/04/2018","Fleet Services","Fleet Management","R4000"
"Wolverhampton City Council","http://opendatacommunities.org/id/metropolitan-district-council/wolverhampton","704748","Johnston Sweepers Limited","61610416","3.11","Equipment - Purchase","190451990","27/04/2018","Fleet Services","Fleet Management","R4000"
"Wolverhampton City Council","http://opendatacommunities.org/id/metropolitan-district-council/wolverhampton","704748","Johnston Sweepers Limited","61610416","3.14","Equipment - Purchase","190451990","27/04/2018","Fleet Services","Fleet Management","R4000"
"Wolverhampton City Council","http://opendatacommunities.org/id/metropolitan-district-council/wolverhampton","704748","Johnston Sweepers Limited","61608063","18.45","Equipment - Purchase","190449721","20/04/2018","Fleet Services","Fleet Management","R4000"
"Wolverhampton City Council","http://opendatacommunities.org/id/metropolitan-district-council/wolverhampton","704748","Johnston Sweepers Limited","61586460","72.40","Equipment - Purchase","190441914","04/04/2018","Fleet Services","Fleet Management","R4000"
"Wolverhampton City Council","http://opendatacommunities.org/id/metropolitan-district-council/wolverhampton","704748","Johnston Sweepers Limited","63298935","-72.40","Equipment - Purchase","190441918","04/04/2018","Fleet Services","Fleet Management","R4000"
"Wolverhampton City Council","http://opendatacommunities.org/id/metropolitan-district-council/wolverhampton","704748","Johnston Sweepers Limited","61606008","87.60","Equipment - Purchase","190451986","27/04/2018","Fleet Services","Fleet Management","R4000"
"Wolverhampton City Council","http://opendatacommunities.org/id/metropolitan-district-council/wolverhampton","704748","Johnston Sweepers Limited","61609970","27.96","Equipment - Purchase","190451988","27/04/2018","Fleet Services","Fleet Management","R4000"
"Wolverhampton City Council","http://opendatacommunities.org/id/metropolitan-district-council/wolverhampton","704748","Johnston Sweepers Limited","61602545","44.79","Equipment - Purchase","190448768","18/04/2018","Fleet Services","Fleet Management","R4000"
"Wolverhampton City Council","http://opendatacommunities.org/id/metropolitan-district-council/wolverhampton","704748","Johnston Sweepers Limited","61604132","10.54","Equipment - Purchase","190451793","27/04/2018","Fleet Services","Fleet Management","R4000"
"Wolverhampton City Council","http://opendatacommunities.org/id/metropolitan-district-council/wolverhampton","704748","Johnston Sweepers Limited","61604132","10.54","Equipment - Purchase","190451793","27/04/2018","Fleet Services","Fleet Management","R4000"
"Wolverhampton City Council","http://opendatacommunities.org/id/metropolitan-district-council/wolverhampton","704748","Johnston Sweepers Limited","61606006","22.83","Equipment - Purchase","190449718","20/04/2018","Fleet Services","Fleet Management","R4000"
"Wolverhampton City Council","http://opendatacommunities.org/id/metropolitan-district-council/wolverhampton","704748","Johnston Sweepers Limited","61606006","38.20","Equipment - Purchase","190449718","20/04/2018","Fleet Services","Fleet Management","R4000"
"Wolverhampton City Council","http://opendatacommunities.org/id/metropolitan-district-council/wolverhampton","704748","Johnston Sweepers Limited","61606006","23.89","Equipment - Purchase","190449718","20/04/2018","Fleet Services","Fleet Management","R4000"
"Wolverhampton City Council","http://opendatacommunities.org/id/metropolitan-district-council/wolverhampton","704748","Johnston Sweepers Limited","61606006","13.64","Equipment - Purchase","190449718","20/04/2018","Fleet Services","Fleet Management","R4000"
"Wolverhampton City Council","http://opendatacommunities.org/id/metropolitan-district-council/wolverhampton","704748","Johnston Sweepers Limited","61601056","158.78","Equipment - Purchase","190441916","04/04/2018","Fleet Services","Fleet Management","R4000"
"Wolverhampton City Council","http://opendatacommunities.org/id/metropolitan-district-council/wolverhampton","704748","Johnston Sweepers Limited","61608557","25.89","Equipment - Purchase","190451987","27/04/2018","Fleet Services","Fleet Management","R4000"
"Wolverhampton City Council","http://opendatacommunities.org/id/metropolitan-district-council/wolverhampton","704748","Johnston Sweepers Limited","61603516","3.46","Equipment - Purchase","190451792","27/04/2018","Fleet Services","Fleet Management","R4000"
"Wolverhampton City Council","http://opendatacommunities.org/id/metropolitan-district-council/wolverhampton","704748","Johnston Sweepers Limited","61603516","1.51","Equipment - Purchase","190451792","27/04/2018","Fleet Services","Fleet Management","R4000"
"Wolverhampton City Council","http://opendatacommunities.org/id/metropolitan-district-council/wolverhampton","704748","Johnston Sweepers Limited","61603516","4.54","Equipment - Purchase","190451792","27/04/2018","Fleet Services","Fleet Management","R4000"
"Wolverhampton City Council","http://opendatacommunities.org/id/metropolitan-district-council/wolverhampton","704748","Johnston Sweepers Limited","61603516","4.54","Equipment - Purchase","190451792","27/04/2018","Fleet Services","Fleet Management","R4000"
"Wolverhampton City Council","http://opendatacommunities.org/id/metropolitan-district-council/wolverhampton","704748","Johnston Sweepers Limited","61603516","31.56","Equipment - Purchase","190451792","27/04/2018","Fleet Services","Fleet Management","R4000"
"Wolverhampton City Council","http://opendatacommunities.org/id/metropolitan-district-council/wolverhampton","704748","Johnston Sweepers Limited","61606005","5.80","Equipment - Purchase","190449717","20/04/2018","Fleet Services","Fleet Management","R4000"
"Wolverhampton City Council","http://opendatacommunities.org/id/metropolitan-district-council/wolverhampton","704748","Johnston Sweepers Limited","61607470","0.91","Equipment - Purchase","190449720","20/04/2018","Fleet Services","Fleet Management","R4000"
"Wolverhampton City Council","http://opendatacommunities.org/id/metropolitan-district-council/wolverhampton","704748","Johnston Sweepers Limited","61607470","1.85","Equipment - Purchase","190449720","20/04/2018","Fleet Services","Fleet Management","R4000"
"Wolverhampton City Council","http://opendatacommunities.org/id/metropolitan-district-council/wolverhampton","704748","Johnston Sweepers Limited","61607470","72.77","Equipment - Purchase","190449720","20/04/2018","Fleet Services","Fleet Management","R4000"
"Wolverhampton City Council","http://opendatacommunities.org/id/metropolitan-district-council/wolverhampton","704748","Johnston Sweepers Limited","61587222","72.40","Equipment - Purchase","190441915","04/04/2018","Fleet Services","Fleet Management","R4000"
"Wolverhampton City Council","http://opendatacommunities.org/id/metropolitan-district-council/wolverhampton","704748","Johnston Sweepers Limited","61602544","27.96","Equipment - Purchase","190451789","27/04/2018","Fleet Services","Fleet Management","R4000"
"Wolverhampton City Council","http://opendatacommunities.org/id/metropolitan-district-council/wolverhampton","704748","Johnston Sweepers Limited","61603056","20.32","Equipment - Purchase","190451790","27/04/2018","Fleet Services","Fleet Management","R4000"
"Wolverhampton City Council","http://opendatacommunities.org/id/metropolitan-district-council/wolverhampton","704748","Johnston Sweepers Limited","61603056","95.19","Equipment - Purchase","190451790","27/04/2018","Fleet Services","Fleet Management","R4000"
"Wolverhampton City Council","http://opendatacommunities.org/id/metropolitan-district-council/wolverhampton","704748","Johnston Sweepers Limited","61603056","21.65","Equipment - Purchase","190451790","27/04/2018","Fleet Services","Fleet Management","R4000"
"Wolverhampton City Council","http://opendatacommunities.org/id/metropolitan-district-council/wolverhampton","704748","Johnston Sweepers Limited","61603515","48.87","Equipment - Purchase","190451791","27/04/2018","Fleet Services","Fleet Management","R4000"
"Wolverhampton City Council","http://opendatacommunities.org/id/metropolitan-district-council/wolverhampton","704748","Johnston Sweepers Limited","61600673","4.22","Equipment - Purchase","190442301","04/04/2018","Fleet Services","Fleet Management","R4000"
"Wolverhampton City Council","http://opendatacommunities.org/id/metropolitan-district-council/wolverhampton","704748","Johnston Sweepers Limited","61600673","6.85","Equipment - Purchase","190442301","04/04/2018","Fleet Services","Fleet Management","R4000"
"Wolverhampton City Council","http://opendatacommunities.org/id/metropolitan-district-council/wolverhampton","704748","Johnston Sweepers Limited","61600673","6.11","Equipment - Purchase","190442301","04/04/2018","Fleet Services","Fleet Management","R4000"
"Wolverhampton City Council","http://opendatacommunities.org/id/metropolitan-district-council/wolverhampton","704754","Jones Skips (Wolverhampton) Limited","46056","60.00","TPP - Waste Disposal","130211051","04/04/2018","Early Intervention","EIP Locality 2 � Bilston/Rocket Pool","R5003"
"Wolverhampton City Council","http://opendatacommunities.org/id/metropolitan-district-council/wolverhampton","704754","Jones Skips (Wolverhampton) Limited","46346","60.00","TPP - Waste Disposal","130212471","11/04/2018","Early Intervention","EIP Locality 2 � Bilston/Rocket Pool","R5003"
"Wolverhampton City Council","http://opendatacommunities.org/id/metropolitan-district-council/wolverhampton","704754","Jones Skips (Wolverhampton) Limited","47243","120.00","TPP - Waste Disposal","130213724","25/04/2018","Early Intervention","EIP Locality 1 - Eastfields","R5003"
"Wolverhampton City Council","http://opendatacommunities.org/id/metropolitan-district-council/wolverhampton","704754","Jones Skips (Wolverhampton) Limited","46347","170.00","TPP - Waste Disposal","130212472","11/04/2018","Early Intervention","EIP Locality 2 � Bilston/Rocket Pool","R5003"
"Wolverhampton City Council","http://opendatacommunities.org/id/metropolitan-district-council/wolverhampton","704754","Jones Skips (Wolverhampton) Limited","46054","115.00","TPP - Waste Disposal","130211049","04/04/2018","Early Intervention","EIP Locality 5 � Whitmore Reans","R5003"
"Wolverhampton City Council","http://opendatacommunities.org/id/metropolitan-district-council/wolverhampton","704754","Jones Skips (Wolverhampton) Limited","46343","2,560.58","TPP - Waste Disposal","130213827","25/04/2018","Environmental Maintenance","Ground Maintenance East","R5003"
"Wolverhampton City Council","http://opendatacommunities.org/id/metropolitan-district-council/wolverhampton","704754","Jones Skips (Wolverhampton) Limited","46055","180.00","Materials","130211050","04/04/2018","Street Lighting","Street Lighting Maintenance","R4007"
"Wolverhampton City Council","http://opendatacommunities.org/id/metropolitan-district-council/wolverhampton","704754","Jones Skips (Wolverhampton) Limited","46057","180.00","Materials","130211588","04/04/2018","Street Lighting","Street Lighting Maintenance","R4007"
"Wolverhampton City Council","http://opendatacommunities.org/id/metropolitan-district-council/wolverhampton","704754","Jones Skips (Wolverhampton) Limited","46373","115.00","Refuse Collection","130212940","18/04/2018","Child Protection","CIN/CP Social Work Unit - Area 3","R2704"
"Wolverhampton City Council","http://opendatacommunities.org/id/metropolitan-district-council/wolverhampton","704754","Jones Skips (Wolverhampton) Limited","47244","175.00","TPP - Waste Disposal","130213725","25/04/2018","Early Intervention","EIP Locality 2 � Bilston/Rocket Pool","R5003"
"Wolverhampton City Council","http://opendatacommunities.org/id/metropolitan-district-council/wolverhampton","704756","Jones Transmissions","6369","395.00","Services - Professional Fees","190443953","04/04/2018","Fleet Services","Fleet Management","R4400"
"Wolverhampton City Council","http://opendatacommunities.org/id/metropolitan-district-council/wolverhampton","704756","Jones Transmissions","6369","80.00","Services - Professional Fees","190443953","04/04/2018","Fleet Services","Fleet Management","R4400"
"Wolverhampton City Council","http://opendatacommunities.org/id/metropolitan-district-council/wolverhampton","704756","Jones Transmissions","6369","15.00","Services - Professional Fees","190443953","04/04/2018","Fleet Services","Fleet Management","R4400"
"Wolverhampton City Council","http://opendatacommunities.org/id/metropolitan-district-council/wolverhampton","704756","Jones Transmissions","6369","15.00","Services - Professional Fees","190443953","04/04/2018","Fleet Services","Fleet Management","R4400"
"Wolverhampton City Council","http://opendatacommunities.org/id/metropolitan-district-council/wolverhampton","704756","Jones Transmissions","6364","20.00","Services - Professional Fees","190442533","04/04/2018","Fleet Services","Fleet Management","R4400"
"Wolverhampton City Council","http://opendatacommunities.org/id/metropolitan-district-council/wolverhampton","704756","Jones Transmissions","6364","595.00","Services - Professional Fees","190442533","04/04/2018","Fleet Services","Fleet Management","R4400"
"Wolverhampton City Council","http://opendatacommunities.org/id/metropolitan-district-council/wolverhampton","704756","Jones Transmissions","6364","200.00","Services - Professional Fees","190442533","04/04/2018","Fleet Services","Fleet Management","R4400"
"Wolverhampton City Council","http://opendatacommunities.org/id/metropolitan-district-council/wolverhampton","704784","Just Print UK Limited T/A Jp-UK","35703","1,469.80","Computing - Purchase of Hardware","130208357","04/04/2018","Adult Education","ICT Services","R4530"
"Wolverhampton City Council","http://opendatacommunities.org/id/metropolitan-district-council/wolverhampton","704784","Just Print UK Limited T/A Jp-UK","35703","109.80","Computing - Purchase of Hardware","130208357","04/04/2018","Adult Education","ICT Services","R4530"
"Wolverhampton City Council","http://opendatacommunities.org/id/metropolitan-district-council/wolverhampton","704784","Just Print UK Limited T/A Jp-UK","35703","14.90","Comms - Postage","130208357","04/04/2018","Adult Education","ICT Services","R4503"
"Wolverhampton City Council","http://opendatacommunities.org/id/metropolitan-district-council/wolverhampton","704847","Keltic Clothing Limited","144070","1,165.45","Clothing / Uniforms","130212055","25/04/2018","Transportation","School Crossing Patrol","R4201"
"Wolverhampton City Council","http://opendatacommunities.org/id/metropolitan-district-council/wolverhampton","704847","Keltic Clothing Limited","144070","159.50","Clothing / Uniforms","130212055","25/04/2018","Transportation","School Crossing Patrol","R4201"
"Wolverhampton City Council","http://opendatacommunities.org/id/metropolitan-district-council/wolverhampton","704847","Keltic Clothing Limited","144070","41.85","Clothing / Uniforms","130212055","25/04/2018","Transportation","School Crossing Patrol","R4201"
"Wolverhampton City Council","http://opendatacommunities.org/id/metropolitan-district-council/wolverhampton","704847","Keltic Clothing Limited","144070","263.80","Clothing / Uniforms","130212055","25/04/2018","Transportation","School Crossing Patrol","R4201"
"Wolverhampton City Council","http://opendatacommunities.org/id/metropolitan-district-council/wolverhampton","704847","Keltic Clothing Limited","144070","45.00","Clothing / Uniforms","130212055","25/04/2018","Transportation","School Crossing Patrol","R4201"
"Wolverhampton City Council","http://opendatacommunities.org/id/metropolitan-district-council/wolverhampton","704847","Keltic Clothing Limited","144070","8.95","Clothing / Uniforms","130212055","25/04/2018","Transportation","School Crossing Patrol","R4201"
"Wolverhampton City Council","http://opendatacommunities.org/id/metropolitan-district-council/wolverhampton","704855","Kenton Research Limited","OP/I024495","612.50","Computing - Internet","130208494","04/04/2018","ICTS","Strategic ICTS (ICT Service Budget)","R4537"
"Wolverhampton City Council","http://opendatacommunities.org/id/metropolitan-district-council/wolverhampton","704855","Kenton Research Limited","OP/I024607","415.00","Computing - Internet","130209743","04/04/2018","ICTS","Strategic ICTS (ICT Service Budget)","R4537"
"Wolverhampton City Council","http://opendatacommunities.org/id/metropolitan-district-council/wolverhampton","704871","Keysoft Solutions Limited","2018785","676.00","Computing - Purchase of Software","130211052","18/04/2018","Landscape","Landscape","R4531"
"Wolverhampton City Council","http://opendatacommunities.org/id/metropolitan-district-council/wolverhampton","704889","Killgerm Chemicals Limited","SI02-0178769","112.00","Materials","130210006","11/04/2018","Environmental Maintenance","Pest Control","R4007"
"Wolverhampton City Council","http://opendatacommunities.org/id/metropolitan-district-council/wolverhampton","704889","Killgerm Chemicals Limited","SI02-0178769","8.00","Materials","130210006","11/04/2018","Environmental Maintenance","Pest Control","R4007"
"Wolverhampton City Council","http://opendatacommunities.org/id/metropolitan-district-council/wolverhampton","704899","King Highway Products Limited","SI-000701","366.50","Services - Professional Fees","190448811","18/04/2018","Fleet Services","Fleet Management","R4400"
"Wolverhampton City Council","http://opendatacommunities.org/id/metropolitan-district-council/wolverhampton","704901","Kingfisher Environmental Servs Limited","1803742","74.03","Services - Professional Fees","130212056","11/04/2018","Leisure Services","Bert Williams Leisure Centre","R4400"
"Wolverhampton City Council","http://opendatacommunities.org/id/metropolitan-district-council/wolverhampton","704901","Kingfisher Environmental Servs Limited","1803743","53.98","R&M - Departmental planned (external)","130212941","18/04/2018","Leisure Services","Central Baths","R2001"
"Wolverhampton City Council","http://opendatacommunities.org/id/metropolitan-district-council/wolverhampton","704921","Knight Kavanagh & Page","4993","2,475.00","Services - Consultants","130211370","04/04/2018","Planning","Planning","R4404"
"Wolverhampton City Council","http://opendatacommunities.org/id/metropolitan-district-council/wolverhampton","704921","Knight Kavanagh & Page","4994","550.00","Services - Consultants","130211371","04/04/2018","Planning","Planning","R4404"
"Wolverhampton City Council","http://opendatacommunities.org/id/metropolitan-district-council/wolverhampton","704934","Kpr Midlink Limited","13316","855.72","Services - General Licences","130212253","11/04/2018","Markets","Bilston Market and Licensed Operations","R4402"
"Wolverhampton City Council","http://opendatacommunities.org/id/metropolitan-district-council/wolverhampton","704934","Kpr Midlink Limited","13316","4,523.09","Services - General Licences","130212253","11/04/2018","Markets","Wolverhampton Indoor and Open Market","R4402"
"Wolverhampton City Council","http://opendatacommunities.org/id/metropolitan-district-council/wolverhampton","704934","Kpr Midlink Limited","13316","733.47","Services - General Licences","130212253","11/04/2018","Markets","Wednesfield Street Market","R4402"
"Wolverhampton City Council","http://opendatacommunities.org/id/metropolitan-district-council/wolverhampton","704964","L.M.S. Music Supplies","692279","210.00","Equipment - R & M","130211053","04/04/2018","Standards and Vulnerable Pupils","Music Support Team","R4003"
"Wolverhampton City Council","http://opendatacommunities.org/id/metropolitan-district-council/wolverhampton","705023","Le Breton Services Group Limited","PI030731","3,720.00","Training Expenses","130212057","11/04/2018","Human Resources","Centralised Training","R1650"
"Wolverhampton City Council","http://opendatacommunities.org/id/metropolitan-district-council/wolverhampton","705023","Le Breton Services Group Limited","1406 - bacs rej.","61.52","Agency Staff","130213043","18/04/2018","Schools","Stowheath Primary School","R1100"
"Wolverhampton City Council","http://opendatacommunities.org/id/metropolitan-district-council/wolverhampton","705071","Leisure & Community Partnership","1048697","174.50","Room Hire","130212060","11/04/2018","Early Years","Early Years & Universal Service","R2201"
"Wolverhampton City Council","http://opendatacommunities.org/id/metropolitan-district-council/wolverhampton","705081","Lesar UK Limited","55316","919.00","Computing - Purchase of Hardware","130208810","04/04/2018","Adult Education","ICT Services","R4530"
"Wolverhampton City Council","http://opendatacommunities.org/id/metropolitan-district-council/wolverhampton","705081","Lesar UK Limited","55316","749.00","Computing - Purchase of Software","130208810","04/04/2018","Adult Education","ICT Services","R4531"
"Wolverhampton City Council","http://opendatacommunities.org/id/metropolitan-district-council/wolverhampton","705081","Lesar UK Limited","55316","9.95","Comms - Postage","130208810","04/04/2018","Adult Education","ICT Services","R4503"
"Wolverhampton City Council","http://opendatacommunities.org/id/metropolitan-district-council/wolverhampton","705089","Reliance Medical Limited","699442","116.27","Materials","130213830","25/04/2018","Older People Provider Services","Bradley Lodge Resource Centre","R4007"
"Wolverhampton City Council","http://opendatacommunities.org/id/metropolitan-district-council/wolverhampton","705091","Lexis Nexis","DI585238E","2,358.00","Services - Professional Fees","130209400","06/04/2018","Legal Services","Legal Services","R4400"
"Wolverhampton City Council","http://opendatacommunities.org/id/metropolitan-district-council/wolverhampton","705091","Lexis Nexis","DI585238E","-2,358.00","Services - Professional Fees","130209400","06/04/2018","Legal Services","Legal Services","R4400"
"Wolverhampton City Council","http://opendatacommunities.org/id/metropolitan-district-council/wolverhampton","705091","Lexis Nexis","DI585238E","2,358.00","Services - Professional Fees","130209400","06/04/2018","Legal Services","Legal Services","R4400"
"Wolverhampton City Council","http://opendatacommunities.org/id/metropolitan-district-council/wolverhampton","705094","LG Futures Limited","6002759","12,680.00","Subscriptions","130210007","04/04/2018","Strategic Finance","Strategic Finance","R4701"
"Wolverhampton City Council","http://opendatacommunities.org/id/metropolitan-district-council/wolverhampton","705112","Light House Limited","1718-122","255.00","Catering","130212061","18/04/2018","Strategic Organisation Development","Service Development Team","R4100"
"Wolverhampton City Council","http://opendatacommunities.org/id/metropolitan-district-council/wolverhampton","705112","Light House Limited","1718-113","50.00","Room Hire","130209576","04/04/2018","Strategic Organisation Development","GEN Y City Transnational","R2201"
"Wolverhampton City Council","http://opendatacommunities.org/id/metropolitan-district-council/wolverhampton","705112","Light House Limited","1718-113","122.50","Catering","130209576","04/04/2018","Strategic Organisation Development","GEN Y City Transnational","R4100"
"Wolverhampton City Council","http://opendatacommunities.org/id/metropolitan-district-council/wolverhampton","705112","Light House Limited","1718-127","184.40","Catering","130212062","25/04/2018","Strategic Organisation Development","GEN Y City Transnational","R4100"
"Wolverhampton City Council","http://opendatacommunities.org/id/metropolitan-district-council/wolverhampton","705112","Light House Limited","1718-112","260.00","Education trips, Holidays, Outings & Activities","130208648","04/04/2018","Headstart","B-Safe","R4970"
"Wolverhampton City Council","http://opendatacommunities.org/id/metropolitan-district-council/wolverhampton","705112","Light House Limited","1718-128","242.00","Room Hire","130212063","25/04/2018","Strategic Organisation Development","Service Development Team","R2201"
"Wolverhampton City Council","http://opendatacommunities.org/id/metropolitan-district-council/wolverhampton","705153","Living Springs Family Centre","P166423 04031820180410","981.18","TPP - Residential Care - Long Term","190446868","11/04/2018","Child Protection","CIN - Priory Green MAST - Area 6","R5400"
"Wolverhampton City Council","http://opendatacommunities.org/id/metropolitan-district-council/wolverhampton","705162","Local Government Association","40219624","1,462.50","Marketing \ Non-staff advertising","130209401","06/04/2018","Democratic Services","Electoral Registration","R4317"
"Wolverhampton City Council","http://opendatacommunities.org/id/metropolitan-district-council/wolverhampton","705177","Locks & Fittings Limited","1060134","33.18","R&M - Departmental planned (external)","130210897","11/04/2018","Maintenance Programme","Centralised R&M","R2001"
"Wolverhampton City Council","http://opendatacommunities.org/id/metropolitan-district-council/wolverhampton","705210","Low Hill Community Association","274","1,000.00","Room Hire","130209577","11/04/2018","Headstart","Headstart Hubs","R2201"
"Wolverhampton City Council","http://opendatacommunities.org/id/metropolitan-district-council/wolverhampton","705225","Luscombe Cider Limited","0000152994","202.58","Provisions (Resale)","130211125","04/04/2018","Visitor Economy","Art Gallery Tea Room","R4102"
"Wolverhampton City Council","http://opendatacommunities.org/id/metropolitan-district-council/wolverhampton","705225","Luscombe Cider Limited","0000153579","313.20","Provisions (Resale)","130213526","25/04/2018","Visitor Economy","Bantock - Tea Rooms","R4102"
"Wolverhampton City Council","http://opendatacommunities.org/id/metropolitan-district-council/wolverhampton","705274","M.K.G. (Food Products) Limited","079789","284.87","Provisions (Resale)","130210469","06/04/2018","Visitor Economy","Art Gallery Tea Room","R4102"
"Wolverhampton City Council","http://opendatacommunities.org/id/metropolitan-district-council/wolverhampton","705274","M.K.G. (Food Products) Limited","080592","353.91","Provisions (Resale)","130210261","11/04/2018","Visitor Economy","Art Gallery Tea Room","R4102"
"Wolverhampton City Council","http://opendatacommunities.org/id/metropolitan-district-council/wolverhampton","705274","M.K.G. (Food Products) Limited","081751","366.75","Provisions (Resale)","130211235","18/04/2018","Visitor Economy","Art Gallery Tea Room","R4102"
"Wolverhampton City Council","http://opendatacommunities.org/id/metropolitan-district-council/wolverhampton","705274","M.K.G. (Food Products) Limited","078302","205.05","Provisions (Resale)","130208172","04/04/2018","Visitor Economy","Art Gallery Tea Room","R4102"
"Wolverhampton City Council","http://opendatacommunities.org/id/metropolitan-district-council/wolverhampton","705274","M.K.G. (Food Products) Limited","078302","-205.05","Provisions (Resale)","130208172","04/04/2018","Visitor Economy","Art Gallery Tea Room","R4102"
"Wolverhampton City Council","http://opendatacommunities.org/id/metropolitan-district-council/wolverhampton","705274","M.K.G. (Food Products) Limited","078302","205.05","Provisions (Resale)","130208172","04/04/2018","Visitor Economy","Art Gallery Tea Room","R4102"
"Wolverhampton City Council","http://opendatacommunities.org/id/metropolitan-district-council/wolverhampton","705274","M.K.G. (Food Products) Limited","079359","133.45","Provisions (Resale)","130209185","04/04/2018","Visitor Economy","Art Gallery Tea Room","R4102"
"Wolverhampton City Council","http://opendatacommunities.org/id/metropolitan-district-council/wolverhampton","705274","M.K.G. (Food Products) Limited","079359","-133.45","Provisions (Resale)","130209185","04/04/2018","Visitor Economy","Art Gallery Tea Room","R4102"
"Wolverhampton City Council","http://opendatacommunities.org/id/metropolitan-district-council/wolverhampton","705274","M.K.G. (Food Products) Limited","079359","133.45","Provisions (Resale)","130209185","04/04/2018","Visitor Economy","Art Gallery Tea Room","R4102"
"Wolverhampton City Council","http://opendatacommunities.org/id/metropolitan-district-council/wolverhampton","705274","M.K.G. (Food Products) Limited","078301","320.90","Provisions (Resale)","130208171","04/04/2018","Visitor Economy","Art Gallery Tea Room","R4102"
"Wolverhampton City Council","http://opendatacommunities.org/id/metropolitan-district-council/wolverhampton","705274","M.K.G. (Food Products) Limited","078301","-320.90","Provisions (Resale)","130208171","04/04/2018","Visitor Economy","Art Gallery Tea Room","R4102"
"Wolverhampton City Council","http://opendatacommunities.org/id/metropolitan-district-council/wolverhampton","705274","M.K.G. (Food Products) Limited","078301","3.21","Provisions (Resale)","130208171","04/04/2018","Visitor Economy","Art Gallery Tea Room","R4102"
"Wolverhampton City Council","http://opendatacommunities.org/id/metropolitan-district-council/wolverhampton","705274","M.K.G. (Food Products) Limited","078301","317.69","Provisions (Resale)","130208171","04/04/2018","Visitor Economy","Art Gallery Tea Room","R4102"
"Wolverhampton City Council","http://opendatacommunities.org/id/metropolitan-district-council/wolverhampton","705274","M.K.G. (Food Products) Limited","080163","241.35","Provisions (Resale)","130210470","11/04/2018","Visitor Economy","Art Gallery Tea Room","R4102"
"Wolverhampton City Council","http://opendatacommunities.org/id/metropolitan-district-council/wolverhampton","705274","M.K.G. (Food Products) Limited","081753","175.31","Provisions (Resale)","130211236","18/04/2018","Visitor Economy","Art Gallery Tea Room","R4102"
"Wolverhampton City Council","http://opendatacommunities.org/id/metropolitan-district-council/wolverhampton","705274","M.K.G. (Food Products) Limited","082881","100.70","Provisions (Resale)","130211794","25/04/2018","Visitor Economy","Art Gallery Tea Room","R4102"
"Wolverhampton City Council","http://opendatacommunities.org/id/metropolitan-district-council/wolverhampton","705274","M.K.G. (Food Products) Limited","080992","106.66","Provisions (Resale)","130210472","13/04/2018","Visitor Economy","Art Gallery Tea Room","R4102"
"Wolverhampton City Council","http://opendatacommunities.org/id/metropolitan-district-council/wolverhampton","705274","M.K.G. (Food Products) Limited","080593","78.20","Provisions (Resale)","130210471","11/04/2018","Visitor Economy","Art Gallery Tea Room","R4102"
"Wolverhampton City Council","http://opendatacommunities.org/id/metropolitan-district-council/wolverhampton","705274","M.K.G. (Food Products) Limited","081340","213.46","Provisions (Resale)","130211233","18/04/2018","Visitor Economy","Art Gallery Tea Room","R4102"
"Wolverhampton City Council","http://opendatacommunities.org/id/metropolitan-district-council/wolverhampton","705274","M.K.G. (Food Products) Limited","078583","213.21","Provisions (Resale)","130209013","04/04/2018","Visitor Economy","Art Gallery Tea Room","R4102"
"Wolverhampton City Council","http://opendatacommunities.org/id/metropolitan-district-council/wolverhampton","705274","M.K.G. (Food Products) Limited","078583","-213.21","Provisions (Resale)","130209013","04/04/2018","Visitor Economy","Art Gallery Tea Room","R4102"
"Wolverhampton City Council","http://opendatacommunities.org/id/metropolitan-district-council/wolverhampton","705274","M.K.G. (Food Products) Limited","078583","34.56","Provisions (Resale)","130209013","04/04/2018","Visitor Economy","Art Gallery Tea Room","R4102"
"Wolverhampton City Council","http://opendatacommunities.org/id/metropolitan-district-council/wolverhampton","705274","M.K.G. (Food Products) Limited","078583","178.65","Provisions (Resale)","130209013","04/04/2018","Visitor Economy","Art Gallery Tea Room","R4102"
"Wolverhampton City Council","http://opendatacommunities.org/id/metropolitan-district-council/wolverhampton","705274","M.K.G. (Food Products) Limited","078950","-143.69","Provisions (Resale)","130209184","04/04/2018","Visitor Economy","Art Gallery Tea Room","R4102"
"Wolverhampton City Council","http://opendatacommunities.org/id/metropolitan-district-council/wolverhampton","705274","M.K.G. (Food Products) Limited","078950","143.69","Provisions (Resale)","130209184","04/04/2018","Visitor Economy","Art Gallery Tea Room","R4102"
"Wolverhampton City Council","http://opendatacommunities.org/id/metropolitan-district-council/wolverhampton","705274","M.K.G. (Food Products) Limited","078950","143.69","Provisions (Resale)","130209184","04/04/2018","Visitor Economy","Art Gallery Tea Room","R4102"
"Wolverhampton City Council","http://opendatacommunities.org/id/metropolitan-district-council/wolverhampton","705274","M.K.G. (Food Products) Limited","082500","211.35","Provisions (Resale)","130211791","25/04/2018","Visitor Economy","Art Gallery Tea Room","R4102"
"Wolverhampton City Council","http://opendatacommunities.org/id/metropolitan-district-council/wolverhampton","705274","M.K.G. (Food Products) Limited","082501","246.59","Provisions (Resale)","130211792","25/04/2018","Visitor Economy","Art Gallery Tea Room","R4102"
"Wolverhampton City Council","http://opendatacommunities.org/id/metropolitan-district-council/wolverhampton","705274","M.K.G. (Food Products) Limited","082138","353.10","Provisions (Resale)","130211790","20/04/2018","Visitor Economy","Art Gallery Tea Room","R4102"
"Wolverhampton City Council","http://opendatacommunities.org/id/metropolitan-district-council/wolverhampton","705274","M.K.G. (Food Products) Limited","079788","349.30","Provisions (Resale)","130210259","06/04/2018","Visitor Economy","Art Gallery Tea Room","R4102"
"Wolverhampton City Council","http://opendatacommunities.org/id/metropolitan-district-council/wolverhampton","705274","M.K.G. (Food Products) Limited","080161","76.83","Provisions (Resale)","130210260","11/04/2018","Visitor Economy","Art Gallery Tea Room","R4102"
"Wolverhampton City Council","http://opendatacommunities.org/id/metropolitan-district-council/wolverhampton","705274","M.K.G. (Food Products) Limited","081341","283.67","Provisions (Resale)","130211234","18/04/2018","Visitor Economy","Art Gallery Tea Room","R4102"
"Wolverhampton City Council","http://opendatacommunities.org/id/metropolitan-district-council/wolverhampton","705274","M.K.G. (Food Products) Limited","079358","238.30","Provisions (Resale)","130209015","04/04/2018","Visitor Economy","Art Gallery Tea Room","R4102"
"Wolverhampton City Council","http://opendatacommunities.org/id/metropolitan-district-council/wolverhampton","705274","M.K.G. (Food Products) Limited","079358","-238.30","Provisions (Resale)","130209015","04/04/2018","Visitor Economy","Art Gallery Tea Room","R4102"
"Wolverhampton City Council","http://opendatacommunities.org/id/metropolitan-district-council/wolverhampton","705274","M.K.G. (Food Products) Limited","079358","238.30","Provisions (Resale)","130209015","04/04/2018","Visitor Economy","Art Gallery Tea Room","R4102"
"Wolverhampton City Council","http://opendatacommunities.org/id/metropolitan-district-council/wolverhampton","705274","M.K.G. (Food Products) Limited","078951","181.53","Provisions (Resale)","130209014","04/04/2018","Visitor Economy","Art Gallery Tea Room","R4102"
"Wolverhampton City Council","http://opendatacommunities.org/id/metropolitan-district-council/wolverhampton","705274","M.K.G. (Food Products) Limited","078951","-181.53","Provisions (Resale)","130209014","04/04/2018","Visitor Economy","Art Gallery Tea Room","R4102"
"Wolverhampton City Council","http://opendatacommunities.org/id/metropolitan-district-council/wolverhampton","705274","M.K.G. (Food Products) Limited","078951","61.91","Provisions (Resale)","130209014","04/04/2018","Visitor Economy","Art Gallery Tea Room","R4102"
"Wolverhampton City Council","http://opendatacommunities.org/id/metropolitan-district-council/wolverhampton","705274","M.K.G. (Food Products) Limited","078951","119.62","Provisions (Resale)","130209014","04/04/2018","Visitor Economy","Art Gallery Tea Room","R4102"
"Wolverhampton City Council","http://opendatacommunities.org/id/metropolitan-district-council/wolverhampton","705276","M3 Communications Limited","19906","757.31","Marketing \ Non-staff advertising","130211795","25/04/2018","Visitor Economy","Civic Halls Non-Direct Event Management Account","R4317"
"Wolverhampton City Council","http://opendatacommunities.org/id/metropolitan-district-council/wolverhampton","705281","Machine Mart Limited","1011796","156.64","Equipment - Purchase","130211589","18/04/2018","Fleet Services","Passenger Transport - General","R4000"
"Wolverhampton City Council","http://opendatacommunities.org/id/metropolitan-district-council/wolverhampton","705308","Maintenance Components Limited","114657","3.83","Equipment - Purchase","190443910","04/04/2018","Fleet Services","Fleet Management","R4000"
"Wolverhampton City Council","http://opendatacommunities.org/id/metropolitan-district-council/wolverhampton","705308","Maintenance Components Limited","114657","17.36","Equipment - Purchase","190443910","04/04/2018","Fleet Services","Fleet Management","R4000"
"Wolverhampton City Council","http://opendatacommunities.org/id/metropolitan-district-council/wolverhampton","705308","Maintenance Components Limited","114657","6.41","Equipment - Purchase","190443910","04/04/2018","Fleet Services","Fleet Management","R4000"
"Wolverhampton City Council","http://opendatacommunities.org/id/metropolitan-district-council/wolverhampton","705308","Maintenance Components Limited","114657","6.41","Equipment - Purchase","190443910","04/04/2018","Fleet Services","Fleet Management","R4000"
"Wolverhampton City Council","http://opendatacommunities.org/id/metropolitan-district-council/wolverhampton","705308","Maintenance Components Limited","114657","6.12","Equipment - Purchase","190443910","04/04/2018","Fleet Services","Fleet Management","R4000"
"Wolverhampton City Council","http://opendatacommunities.org/id/metropolitan-district-council/wolverhampton","705308","Maintenance Components Limited","114657","9.72","Equipment - Purchase","190443910","04/04/2018","Fleet Services","Fleet Management","R4000"
"Wolverhampton City Council","http://opendatacommunities.org/id/metropolitan-district-council/wolverhampton","705308","Maintenance Components Limited","114657","9.45","Equipment - Purchase","190443910","04/04/2018","Fleet Services","Fleet Management","R4000"
"Wolverhampton City Council","http://opendatacommunities.org/id/metropolitan-district-council/wolverhampton","705308","Maintenance Components Limited","114657","12.99","Equipment - Purchase","190443910","04/04/2018","Fleet Services","Fleet Management","R4000"
"Wolverhampton City Council","http://opendatacommunities.org/id/metropolitan-district-council/wolverhampton","705308","Maintenance Components Limited","114657","5.46","Equipment - Purchase","190443910","04/04/2018","Fleet Services","Fleet Management","R4000"
"Wolverhampton City Council","http://opendatacommunities.org/id/metropolitan-district-council/wolverhampton","705308","Maintenance Components Limited","114657","7.82","Equipment - Purchase","190443910","04/04/2018","Fleet Services","Fleet Management","R4000"
"Wolverhampton City Council","http://opendatacommunities.org/id/metropolitan-district-council/wolverhampton","705308","Maintenance Components Limited","114657","5.69","Equipment - Purchase","190443910","04/04/2018","Fleet Services","Fleet Management","R4000"
"Wolverhampton City Council","http://opendatacommunities.org/id/metropolitan-district-council/wolverhampton","705308","Maintenance Components Limited","114657","5.17","Equipment - Purchase","190443910","04/04/2018","Fleet Services","Fleet Management","R4000"
"Wolverhampton City Council","http://opendatacommunities.org/id/metropolitan-district-council/wolverhampton","705309","Majestic Travel","278/18","195.00","Education trips, Holidays, Outings & Activities","130210898","04/04/2018","Early Intervention","EIP Locality 3 - Graiseley","R4970"
"Wolverhampton City Council","http://opendatacommunities.org/id/metropolitan-district-council/wolverhampton","705338","Maplin Electronics Limited","L 80272501","582.75","Computing - Consumables","130198207","27/04/2018","Strategic Organisation Development","Global Budgets","R4532"
"Wolverhampton City Council","http://opendatacommunities.org/id/metropolitan-district-council/wolverhampton","705338","Maplin Electronics Limited","L79646701 - credit correction","-67.29","Equipment - Purchase","130207760","27/04/2018","Schools","Coppice Community High School","R4000"
"Wolverhampton City Council","http://opendatacommunities.org/id/metropolitan-district-council/wolverhampton","705338","Maplin Electronics Limited","70200","-93.80","Computing - Consumables","130207805","27/04/2018","Strategic Organisation Development","Global Budgets","R4532"
"Wolverhampton City Council","http://opendatacommunities.org/id/metropolitan-district-council/wolverhampton","705347","Mark Education Limited","2248573","189.95","Agency Staff","130211479","04/04/2018","Schools","Dovecotes Primary School","R1100"
"Wolverhampton City Council","http://opendatacommunities.org/id/metropolitan-district-council/wolverhampton","705347","Mark Education Limited","2248575","1,095.05","Agency Staff","130211481","04/04/2018","Schools","Dovecotes Primary School","R1100"
"Wolverhampton City Council","http://opendatacommunities.org/id/metropolitan-district-council/wolverhampton","705347","Mark Education Limited","2248574","1,095.05","Agency Staff","130211480","04/04/2018","Schools","Dovecotes Primary School","R1100"
"Wolverhampton City Council","http://opendatacommunities.org/id/metropolitan-district-council/wolverhampton","705347","Mark Education Limited","2248576","338.13","Agency Staff","130211482","04/04/2018","Schools","Dovecotes Primary School","R1100"
"Wolverhampton City Council","http://opendatacommunities.org/id/metropolitan-district-council/wolverhampton","705347","Mark Education Limited","2248978","189.95","Agency Staff","130211484","04/04/2018","Schools","Dovecotes Primary School","R1100"
"Wolverhampton City Council","http://opendatacommunities.org/id/metropolitan-district-council/wolverhampton","705347","Mark Education Limited","2248977","1,095.05","Agency Staff","130211483","04/04/2018","Schools","Dovecotes Primary School","R1100"
"Wolverhampton City Council","http://opendatacommunities.org/id/metropolitan-district-council/wolverhampton","705360","Mars Drinks UK Limited","93570436","573.75","Services - Supplies and Services to service users","130209578","25/04/2018","Learning Disability Provider","City Links","R4408"
"Wolverhampton City Council","http://opendatacommunities.org/id/metropolitan-district-council/wolverhampton","705367","Marstons PLC","97853587","1,229.35","Provisions (Resale)","130209187","04/04/2018","Visitor Economy","The Little Civic","R4102"
"Wolverhampton City Council","http://opendatacommunities.org/id/metropolitan-district-council/wolverhampton","705367","Marstons PLC","97853586","191.43","Provisions (Resale)","130209186","04/04/2018","Visitor Economy","The Little Civic","R4102"
"Wolverhampton City Council","http://opendatacommunities.org/id/metropolitan-district-council/wolverhampton","705484","Service Industry Solutions Michael Lay","26","610.00","Training Expenses","130211237","04/04/2018","Audit Services","Health & Safety","R1650"
"Wolverhampton City Council","http://opendatacommunities.org/id/metropolitan-district-council/wolverhampton","705496","Midcounties Co-Operative Funeralcare","080/70070798","1,197.00","Services - Professional Fees","130209579","11/04/2018","Safeguarding","Court of Protection, Funerals and Protection of Property","R4400"
"Wolverhampton City Council","http://opendatacommunities.org/id/metropolitan-district-council/wolverhampton","705496","Midcounties Co-Operative Funeralcare","080/70069864","1,361.00","Services - Professional Fees","130213334","27/04/2018","Safeguarding","Court of Protection, Funerals and Protection of Property","R4400"
"Wolverhampton City Council","http://opendatacommunities.org/id/metropolitan-district-council/wolverhampton","705496","Midcounties Co-Operative Funeralcare","080/70070896","1,197.00","Services - Professional Fees","130210010","11/04/2018","Safeguarding","Court of Protection, Funerals and Protection of Property","R4400"
"Wolverhampton City Council","http://opendatacommunities.org/id/metropolitan-district-council/wolverhampton","705496","Midcounties Co-Operative Funeralcare","080/70070916","1,361.00","Services - Professional Fees","130212637","13/04/2018","Safeguarding","Court of Protection, Funerals and Protection of Property","R4400"
"Wolverhampton City Council","http://opendatacommunities.org/id/metropolitan-district-council/wolverhampton","705496","Midcounties Co-Operative Funeralcare","080/70070714","1,251.00","Services - Professional Fees","130209188","04/04/2018","Safeguarding","Court of Protection, Funerals and Protection of Property","R4400"
"Wolverhampton City Council","http://opendatacommunities.org/id/metropolitan-district-council/wolverhampton","705496","Midcounties Co-Operative Funeralcare","080/70070917","1,197.00","Services - Professional Fees","130209189","06/04/2018","Safeguarding","Court of Protection, Funerals and Protection of Property","R4400"
"Wolverhampton City Council","http://opendatacommunities.org/id/metropolitan-district-council/wolverhampton","705496","Midcounties Co-Operative Funeralcare","080/70071088","1,251.00","Services - Professional Fees","130210011","11/04/2018","Safeguarding","Court of Protection, Funerals and Protection of Property","R4400"
"Wolverhampton City Council","http://opendatacommunities.org/id/metropolitan-district-council/wolverhampton","705519","Midland Motascreens Limited","16391","245.00","Services - Professional Fees","190448754","18/04/2018","Fleet Services","Fleet Management","R4400"
"Wolverhampton City Council","http://opendatacommunities.org/id/metropolitan-district-council/wolverhampton","705519","Midland Motascreens Limited","16350","155.00","Services - Professional Fees","190443933","04/04/2018","Fleet Services","Fleet Management","R4400"
"Wolverhampton City Council","http://opendatacommunities.org/id/metropolitan-district-council/wolverhampton","705519","Midland Motascreens Limited","16390","135.00","Services - Professional Fees","190448753","18/04/2018","Fleet Services","Fleet Management","R4400"
"Wolverhampton City Council","http://opendatacommunities.org/id/metropolitan-district-council/wolverhampton","705519","Midland Motascreens Limited","16351","85.00","Services - Professional Fees","190443934","04/04/2018","Fleet Services","Fleet Management","R4400"
"Wolverhampton City Council","http://opendatacommunities.org/id/metropolitan-district-council/wolverhampton","705519","Midland Motascreens Limited","16385","225.00","Services - Professional Fees","190448752","18/04/2018","Fleet Services","Fleet Management","R4400"
"Wolverhampton City Council","http://opendatacommunities.org/id/metropolitan-district-council/wolverhampton","705519","Midland Motascreens Limited","16373","255.00","Services - Professional Fees","190443935","04/04/2018","Fleet Services","Fleet Management","R4400"
"Wolverhampton City Council","http://opendatacommunities.org/id/metropolitan-district-council/wolverhampton","705520","Midland News Association Limited","I7464235","395.76","Marketing \ Non-staff advertising","130209193","04/04/2018","Operation & Maintenance of Existing Network","UTC - Utilities Organisations","R4317"
"Wolverhampton City Council","http://opendatacommunities.org/id/metropolitan-district-council/wolverhampton","705520","Midland News Association Limited","I7461125","643.10","Construction and Conversion","130208363","04/04/2018","-","Wolverhampton Interchange","C1100"
"Wolverhampton City Council","http://opendatacommunities.org/id/metropolitan-district-council/wolverhampton","705520","Midland News Association Limited","I7462039","445.22","Marketing \ Non-staff advertising","130208367","04/04/2018","Operation & Maintenance of Existing Network","UTC - Utilities Organisations","R4317"
"Wolverhampton City Council","http://opendatacommunities.org/id/metropolitan-district-council/wolverhampton","705520","Midland News Association Limited","I7461124","395.76","Marketing \ Non-staff advertising","130208362","04/04/2018","Operation & Maintenance of Existing Network","UTC - Utilities Organisations","R4317"
"Wolverhampton City Council","http://opendatacommunities.org/id/metropolitan-district-council/wolverhampton","705520","Midland News Association Limited","I7467327","593.64","Construction and Conversion","130210476","11/04/2018","-","Housing General Fund General Schemes - Empty Properties Strategy","C1100"
"Wolverhampton City Council","http://opendatacommunities.org/id/metropolitan-district-council/wolverhampton","705520","Midland News Association Limited","I7467660","219.78","Marketing \ Non-staff advertising","130210477","11/04/2018","Corporate Communications","Communications & Marketing - General","R4317"
"Wolverhampton City Council","http://opendatacommunities.org/id/metropolitan-district-council/wolverhampton","705520","Midland News Association Limited","I7466260","395.76","Marketing \ Non-staff advertising","130209580","11/04/2018","Operation & Maintenance of Existing Network","UTC - Utilities Organisations","R4317"
"Wolverhampton City Council","http://opendatacommunities.org/id/metropolitan-district-council/wolverhampton","705520","Midland News Association Limited","I7470871","197.88","Marketing \ Non-staff advertising","130211799","18/04/2018","Planning","Planning","R4317"
"Wolverhampton City Council","http://opendatacommunities.org/id/metropolitan-district-council/wolverhampton","705520","Midland News Association Limited","I7349657","1,003.20","Marketing \ Non-staff advertising","130212377","13/04/2018","Adult Education","Service Wide","R4317"
"Wolverhampton City Council","http://opendatacommunities.org/id/metropolitan-district-council/wolverhampton","705520","Midland News Association Limited","I7472125","816.26","Marketing \ Non-staff advertising","130212068","25/04/2018","Operation & Maintenance of Existing Network","UTC - Utilities Organisations","R4317"
"Wolverhampton City Council","http://opendatacommunities.org/id/metropolitan-district-council/wolverhampton","705520","Midland News Association Limited","I7465086","1,978.80","Marketing \ Non-staff advertising","130209194","04/04/2018","Operation & Maintenance of Existing Network","UTC - Utilities Organisations","R4317"
"Wolverhampton City Council","http://opendatacommunities.org/id/metropolitan-district-council/wolverhampton","705520","Midland News Association Limited","I7464234","593.64","Construction and Conversion","130209192","04/04/2018","-","Housing General Fund General Schemes - Empty Properties Strategy","C1100"
"Wolverhampton City Council","http://opendatacommunities.org/id/metropolitan-district-council/wolverhampton","705520","Midland News Association Limited","I7463062","445.22","Marketing \ Non-staff advertising","130209191","04/04/2018","Estates and Valuations","Other Premises ; Other","R4317"
"Wolverhampton City Council","http://opendatacommunities.org/id/metropolitan-district-council/wolverhampton","705520","Midland News Association Limited","I7461217","395.76","Marketing \ Non-staff advertising","130208364","04/04/2018","Operation & Maintenance of Existing Network","UTC - Utilities Organisations","R4317"
"Wolverhampton City Council","http://opendatacommunities.org/id/metropolitan-district-council/wolverhampton","705520","Midland News Association Limited","I7468119","445.22","Marketing \ Non-staff advertising","130210478","11/04/2018","Operation & Maintenance of Existing Network","UTC - Utilities Organisations","R4317"
"Wolverhampton City Council","http://opendatacommunities.org/id/metropolitan-district-council/wolverhampton","705520","Midland News Association Limited","I7468162","272.08","Marketing \ Non-staff advertising","130210904","11/04/2018","Planning","Planning","R4317"
"Wolverhampton City Council","http://opendatacommunities.org/id/metropolitan-district-council/wolverhampton","705520","Midland News Association Limited","I7421849","13.50","Marketing \ Non-staff advertising","130212481","11/04/2018","Visitor Economy","Christmas Festivities","R4317"
"Wolverhampton City Council","http://opendatacommunities.org/id/metropolitan-district-council/wolverhampton","705520","Midland News Association Limited","I7470273","1,187.28","Construction and Conversion","130211796","18/04/2018","-","Safety Programme","C1100"
"Wolverhampton City Council","http://opendatacommunities.org/id/metropolitan-district-council/wolverhampton","705520","Midland News Association Limited","I7470276","593.64","Marketing \ Non-staff advertising","130211797","18/04/2018","Highways Maintenance","Highway & Land Drainage","R4317"
"Wolverhampton City Council","http://opendatacommunities.org/id/metropolitan-district-council/wolverhampton","705520","Midland News Association Limited","I7462037","247.34","Marketing \ Non-staff advertising","130208366","04/04/2018","Planning","Planning","R4317"
"Wolverhampton City Council","http://opendatacommunities.org/id/metropolitan-district-council/wolverhampton","705520","Midland News Association Limited","I7471623","219.78","Marketing \ Non-staff advertising","130211801","25/04/2018","Corporate Communications","Communications & Marketing - General","R4317"
"Wolverhampton City Council","http://opendatacommunities.org/id/metropolitan-district-council/wolverhampton","705520","Midland News Association Limited","I7461935","395.76","Marketing \ Non-staff advertising","130208365","04/04/2018","Operation & Maintenance of Existing Network","UTC - Utilities Organisations","R4317"
"Wolverhampton City Council","http://opendatacommunities.org/id/metropolitan-district-council/wolverhampton","705520","Midland News Association Limited","I7465602","593.64","Marketing \ Non-staff advertising","130209196","04/04/2018","Governance Services","Democratic Support","R4317"
"Wolverhampton City Council","http://opendatacommunities.org/id/metropolitan-district-council/wolverhampton","705520","Midland News Association Limited","I7465585","321.56","Marketing \ Non-staff advertising","130209195","04/04/2018","Planning","Planning","R4317"
"Wolverhampton City Council","http://opendatacommunities.org/id/metropolitan-district-council/wolverhampton","705520","Midland News Association Limited","I7468208","1,978.80","Marketing \ Non-staff advertising","130210479","11/04/2018","Operation & Maintenance of Existing Network","UTC - Utilities Organisations","R4317"
"Wolverhampton City Council","http://opendatacommunities.org/id/metropolitan-district-council/wolverhampton","705520","Midland News Association Limited","I7467227","250.00","Marketing \ Non-staff advertising","130210475","11/04/2018","Leisure Services","WV Active Marketing","R4317"
"Wolverhampton City Council","http://opendatacommunities.org/id/metropolitan-district-council/wolverhampton","705520","Midland News Association Limited","I7466478","87.91","Marketing \ Non-staff advertising","130209744","11/04/2018","Corporate Communications","Communications & Marketing - General","R4317"
"Wolverhampton City Council","http://opendatacommunities.org/id/metropolitan-district-council/wolverhampton","705520","Midland News Association Limited","I7466478","87.91","Marketing \ Non-staff advertising","130209744","11/04/2018","Corporate Communications","Communications & Marketing - General","R4317"
"Wolverhampton City Council","http://opendatacommunities.org/id/metropolitan-district-council/wolverhampton","705520","Midland News Association Limited","I7466478","43.96","Marketing \ Non-staff advertising","130209744","11/04/2018","Corporate Communications","Communications & Marketing - General","R4317"
"Wolverhampton City Council","http://opendatacommunities.org/id/metropolitan-district-council/wolverhampton","705520","Midland News Association Limited","I7470274","964.66","Construction and Conversion","130212067","18/04/2018","-","Safety Programme","C1100"
"Wolverhampton City Council","http://opendatacommunities.org/id/metropolitan-district-council/wolverhampton","705520","Midland News Association Limited","I7418649","734.40","Marketing \ Non-staff advertising","130212480","13/04/2018","Visitor Economy","Christmas Festivities","R4317"
"Wolverhampton City Council","http://opendatacommunities.org/id/metropolitan-district-council/wolverhampton","705520","Midland News Association Limited","I7473675","419.98","Marketing \ Non-staff advertising","130212069","25/04/2018","The Hub","Central Advertising","R4317"
"Wolverhampton City Council","http://opendatacommunities.org/id/metropolitan-district-council/wolverhampton","705520","Midland News Association Limited","I7466864","750.00","Marketing \ Non-staff advertising","130210474","11/04/2018","Leisure Services","WV Active Marketing","R4317"
"Wolverhampton City Council","http://opendatacommunities.org/id/metropolitan-district-council/wolverhampton","705520","Midland News Association Limited","I7466751","219.78","Marketing \ Non-staff advertising","130210473","11/04/2018","Corporate Communications","Communications & Marketing - General","R4317"
"Wolverhampton City Council","http://opendatacommunities.org/id/metropolitan-district-council/wolverhampton","705520","Midland News Association Limited","I7470814","445.22","Marketing \ Non-staff advertising","130211798","18/04/2018","Operation & Maintenance of Existing Network","UTC - Utilities Organisations","R4317"
"Wolverhampton City Council","http://opendatacommunities.org/id/metropolitan-district-council/wolverhampton","705520","Midland News Association Limited","I7463767","350.00","Marketing \ Non-staff advertising","130210903","04/04/2018","Leisure Services","WV Active Marketing","R4317"
"Wolverhampton City Council","http://opendatacommunities.org/id/metropolitan-district-council/wolverhampton","705520","Midland News Association Limited","I7462652","395.76","Marketing \ Non-staff advertising","130209190","04/04/2018","Operation & Maintenance of Existing Network","UTC - Utilities Organisations","R4317"
"Wolverhampton City Council","http://opendatacommunities.org/id/metropolitan-district-council/wolverhampton","705520","Midland News Association Limited","I7465014","500.00","Marketing \ Non-staff advertising","130210263","04/04/2018","Democratic Services","Register Office","R4317"
"Wolverhampton City Council","http://opendatacommunities.org/id/metropolitan-district-council/wolverhampton","705520","Midland News Association Limited","I7471474","593.64","Marketing \ Non-staff advertising","130211800","25/04/2018","Governance Services","Democratic Support","R4317"
"Wolverhampton City Council","http://opendatacommunities.org/id/metropolitan-district-council/wolverhampton","705520","Midland News Association Limited","I7350829","99.99","Marketing \ Non-staff advertising","130212378","13/04/2018","Adult Education","Service Wide","R4317"
"Wolverhampton City Council","http://opendatacommunities.org/id/metropolitan-district-council/wolverhampton","705525","Midland Quarry Products Limited","1980542857","103.21","Materials","130211596","25/04/2018","Highways Maintenance","Patching","R4007"
"Wolverhampton City Council","http://opendatacommunities.org/id/metropolitan-district-council/wolverhampton","705525","Midland Quarry Products Limited","1980542857","4.11","Materials","130211596","25/04/2018","Highways Maintenance","Patching","R4007"
"Wolverhampton City Council","http://opendatacommunities.org/id/metropolitan-district-council/wolverhampton","705525","Midland Quarry Products Limited","1980542337","2,195.43","Materials","130211593","25/04/2018","Highways Maintenance","Patching","R4007"
"Wolverhampton City Council","http://opendatacommunities.org/id/metropolitan-district-council/wolverhampton","705525","Midland Quarry Products Limited","1980536560","2,338.92","Materials","130208811","04/04/2018","Highways Maintenance","Patching","R4007"
"Wolverhampton City Council","http://opendatacommunities.org/id/metropolitan-district-council/wolverhampton","705525","Midland Quarry Products Limited","1980537595","3,180.61","Materials","130209197","04/04/2018","Highways Maintenance","Patching","R4007"
"Wolverhampton City Council","http://opendatacommunities.org/id/metropolitan-district-council/wolverhampton","705525","Midland Quarry Products Limited","1980540295","1,693.40","Materials","130210905","18/04/2018","Highways Maintenance","Patching","R4007"
"Wolverhampton City Council","http://opendatacommunities.org/id/metropolitan-district-council/wolverhampton","705525","Midland Quarry Products Limited","1980538447","2,490.33","Materials","130209745","11/04/2018","Highways Maintenance","Patching","R4007"
"Wolverhampton City Council","http://opendatacommunities.org/id/metropolitan-district-council/wolverhampton","705525","Midland Quarry Products Limited","1980542338","780.38","Materials","130211594","25/04/2018","Highways Maintenance","Patching","R4007"
"Wolverhampton City Council","http://opendatacommunities.org/id/metropolitan-district-council/wolverhampton","705525","Midland Quarry Products Limited","1980536561","359.49","Materials","130208812","04/04/2018","Highways Maintenance","Patching","R4007"
"Wolverhampton City Council","http://opendatacommunities.org/id/metropolitan-district-council/wolverhampton","705525","Midland Quarry Products Limited","1980540296","204.18","Materials","130210906","18/04/2018","Highways Maintenance","Patching","R4007"
"Wolverhampton City Council","http://opendatacommunities.org/id/metropolitan-district-council/wolverhampton","705525","Midland Quarry Products Limited","1980542856","1,638.78","Materials","130211595","25/04/2018","Highways Maintenance","Patching","R4007"
"Wolverhampton City Council","http://opendatacommunities.org/id/metropolitan-district-council/wolverhampton","705525","Midland Quarry Products Limited","1980538448","1,679.36","Materials","130209746","11/04/2018","Highways Maintenance","Patching","R4007"
"Wolverhampton City Council","http://opendatacommunities.org/id/metropolitan-district-council/wolverhampton","705525","Midland Quarry Products Limited","1980542336","26.00","Materials","130211592","25/04/2018","Highways Maintenance","Patching","R4007"
"Wolverhampton City Council","http://opendatacommunities.org/id/metropolitan-district-council/wolverhampton","705525","Midland Quarry Products Limited","1980535910","450.02","Materials","130208368","04/04/2018","Highways Maintenance","Patching","R4007"
"Wolverhampton City Council","http://opendatacommunities.org/id/metropolitan-district-council/wolverhampton","705525","Midland Quarry Products Limited","1980540995","3,570.90","Materials","130211133","18/04/2018","Highways Maintenance","Patching","R4007"
"Wolverhampton City Council","http://opendatacommunities.org/id/metropolitan-district-council/wolverhampton","705525","Midland Quarry Products Limited","1980539456","1,995.40","Materials","130210264","11/04/2018","Highways Maintenance","Patching","R4007"
"Wolverhampton City Council","http://opendatacommunities.org/id/metropolitan-district-council/wolverhampton","705534","Midlands Truck & Van Limited","88432497","4.86","Equipment - Purchase","190448775","18/04/2018","Fleet Services","Fleet Management","R4000"
"Wolverhampton City Council","http://opendatacommunities.org/id/metropolitan-district-council/wolverhampton","705534","Midlands Truck & Van Limited","88432376","1.05","Equipment - Purchase","190448774","18/04/2018","Fleet Services","Fleet Management","R4000"
"Wolverhampton City Council","http://opendatacommunities.org/id/metropolitan-district-council/wolverhampton","705534","Midlands Truck & Van Limited","88432376","33.30","Equipment - Purchase","190448774","18/04/2018","Fleet Services","Fleet Management","R4000"
"Wolverhampton City Council","http://opendatacommunities.org/id/metropolitan-district-council/wolverhampton","705534","Midlands Truck & Van Limited","83606737","42.00","Services - Professional Fees","190442535","04/04/2018","Fleet Services","Fleet Management","R4400"
"Wolverhampton City Council","http://opendatacommunities.org/id/metropolitan-district-council/wolverhampton","705534","Midlands Truck & Van Limited","83606737","10.50","Services - Professional Fees","190442535","04/04/2018","Fleet Services","Fleet Management","R4400"
"Wolverhampton City Council","http://opendatacommunities.org/id/metropolitan-district-council/wolverhampton","705534","Midlands Truck & Van Limited","83606737","20.00","Services - Professional Fees","190442535","04/04/2018","Fleet Services","Fleet Management","R4400"
"Wolverhampton City Council","http://opendatacommunities.org/id/metropolitan-district-council/wolverhampton","705534","Midlands Truck & Van Limited","83606737","126.15","Services - Professional Fees","190442535","04/04/2018","Fleet Services","Fleet Management","R4400"
"Wolverhampton City Council","http://opendatacommunities.org/id/metropolitan-district-council/wolverhampton","705534","Midlands Truck & Van Limited","83606737","31.50","Services - Professional Fees","190442535","04/04/2018","Fleet Services","Fleet Management","R4400"
"Wolverhampton City Council","http://opendatacommunities.org/id/metropolitan-district-council/wolverhampton","705534","Midlands Truck & Van Limited","83606737","210.00","Services - Professional Fees","190442535","04/04/2018","Fleet Services","Fleet Management","R4400"
"Wolverhampton City Council","http://opendatacommunities.org/id/metropolitan-district-council/wolverhampton","705534","Midlands Truck & Van Limited","83606737","105.00","Services - Professional Fees","190442535","04/04/2018","Fleet Services","Fleet Management","R4400"
"Wolverhampton City Council","http://opendatacommunities.org/id/metropolitan-district-council/wolverhampton","705534","Midlands Truck & Van Limited","83606737","363.00","Services - Professional Fees","190442535","04/04/2018","Fleet Services","Fleet Management","R4400"
"Wolverhampton City Council","http://opendatacommunities.org/id/metropolitan-district-council/wolverhampton","705534","Midlands Truck & Van Limited","88433490","40.50","Equipment - Purchase","190451991","27/04/2018","Fleet Services","Fleet Management","R4000"
"Wolverhampton City Council","http://opendatacommunities.org/id/metropolitan-district-council/wolverhampton","705534","Midlands Truck & Van Limited","88432228","7.83","Equipment - Purchase","190448773","18/04/2018","Fleet Services","Fleet Management","R4000"
"Wolverhampton City Council","http://opendatacommunities.org/id/metropolitan-district-council/wolverhampton","705534","Midlands Truck & Van Limited","88432557","5.49","Equipment - Purchase","190448776","18/04/2018","Fleet Services","Fleet Management","R4000"
"Wolverhampton City Council","http://opendatacommunities.org/id/metropolitan-district-council/wolverhampton","705534","Midlands Truck & Van Limited","88432645","28.53","Equipment - Purchase","190449722","20/04/2018","Fleet Services","Fleet Management","R4000"
"Wolverhampton City Council","http://opendatacommunities.org/id/metropolitan-district-council/wolverhampton","705534","Midlands Truck & Van Limited","88432645","9.63","Equipment - Purchase","190449722","20/04/2018","Fleet Services","Fleet Management","R4000"
"Wolverhampton City Council","http://opendatacommunities.org/id/metropolitan-district-council/wolverhampton","705534","Midlands Truck & Van Limited","88433149","8.10","Equipment - Purchase","190451794","27/04/2018","Fleet Services","Fleet Management","R4000"
"Wolverhampton City Council","http://opendatacommunities.org/id/metropolitan-district-council/wolverhampton","705534","Midlands Truck & Van Limited","88433149","23.22","Equipment - Purchase","190451794","27/04/2018","Fleet Services","Fleet Management","R4000"
"Wolverhampton City Council","http://opendatacommunities.org/id/metropolitan-district-council/wolverhampton","705534","Midlands Truck & Van Limited","88433149","4.05","Equipment - Purchase","190451794","27/04/2018","Fleet Services","Fleet Management","R4000"
"Wolverhampton City Council","http://opendatacommunities.org/id/metropolitan-district-council/wolverhampton","705534","Midlands Truck & Van Limited","88433149","7.02","Equipment - Purchase","190451794","27/04/2018","Fleet Services","Fleet Management","R4000"
"Wolverhampton City Council","http://opendatacommunities.org/id/metropolitan-district-council/wolverhampton","705534","Midlands Truck & Van Limited","88432204","8.10","Equipment - Purchase","190448771","18/04/2018","Fleet Services","Fleet Management","R4000"
"Wolverhampton City Council","http://opendatacommunities.org/id/metropolitan-district-council/wolverhampton","705534","Midlands Truck & Van Limited","88432205","27.00","Equipment - Purchase","190448772","18/04/2018","Fleet Services","Fleet Management","R4000"
"Wolverhampton City Council","http://opendatacommunities.org/id/metropolitan-district-council/wolverhampton","705534","Midlands Truck & Van Limited","88432205","17.91","Equipment - Purchase","190448772","18/04/2018","Fleet Services","Fleet Management","R4000"
"Wolverhampton City Council","http://opendatacommunities.org/id/metropolitan-district-council/wolverhampton","705534","Midlands Truck & Van Limited","88432043","13.59","Equipment - Purchase","190443960","04/04/2018","Fleet Services","Fleet Management","R4000"
"Wolverhampton City Council","http://opendatacommunities.org/id/metropolitan-district-council/wolverhampton","705534","Midlands Truck & Van Limited","88432698","27.52","Equipment - Purchase","190449723","20/04/2018","Fleet Services","Fleet Management","R4000"
"Wolverhampton City Council","http://opendatacommunities.org/id/metropolitan-district-council/wolverhampton","705534","Midlands Truck & Van Limited","88432698","63.90","Equipment - Purchase","190449723","20/04/2018","Fleet Services","Fleet Management","R4000"
"Wolverhampton City Council","http://opendatacommunities.org/id/metropolitan-district-council/wolverhampton","705534","Midlands Truck & Van Limited","88431768","5.40","Equipment - Purchase","190448770","18/04/2018","Fleet Services","Fleet Management","R4000"
"Wolverhampton City Council","http://opendatacommunities.org/id/metropolitan-district-council/wolverhampton","705534","Midlands Truck & Van Limited","88431768","75.15","Equipment - Purchase","190448770","18/04/2018","Fleet Services","Fleet Management","R4000"
"Wolverhampton City Council","http://opendatacommunities.org/id/metropolitan-district-council/wolverhampton","705534","Midlands Truck & Van Limited","88431768","13.68","Equipment - Purchase","190448770","18/04/2018","Fleet Services","Fleet Management","R4000"
"Wolverhampton City Council","http://opendatacommunities.org/id/metropolitan-district-council/wolverhampton","705534","Midlands Truck & Van Limited","88431768","8.73","Equipment - Purchase","190448770","18/04/2018","Fleet Services","Fleet Management","R4000"
"Wolverhampton City Council","http://opendatacommunities.org/id/metropolitan-district-council/wolverhampton","705534","Midlands Truck & Van Limited","88431768","1.08","Equipment - Purchase","190448770","18/04/2018","Fleet Services","Fleet Management","R4000"
"Wolverhampton City Council","http://opendatacommunities.org/id/metropolitan-district-council/wolverhampton","705534","Midlands Truck & Van Limited","88431768","0.27","Equipment - Purchase","190448770","18/04/2018","Fleet Services","Fleet Management","R4000"
"Wolverhampton City Council","http://opendatacommunities.org/id/metropolitan-district-council/wolverhampton","705534","Midlands Truck & Van Limited","88431768","1.13","Equipment - Purchase","190448770","18/04/2018","Fleet Services","Fleet Management","R4000"
"Wolverhampton City Council","http://opendatacommunities.org/id/metropolitan-district-council/wolverhampton","705534","Midlands Truck & Van Limited","88431768","1.26","Equipment - Purchase","190448770","18/04/2018","Fleet Services","Fleet Management","R4000"
"Wolverhampton City Council","http://opendatacommunities.org/id/metropolitan-district-council/wolverhampton","705534","Midlands Truck & Van Limited","83607937","273.00","Services - Professional Fees","190448769","18/04/2018","Fleet Services","Fleet Management","R4400"
"Wolverhampton City Council","http://opendatacommunities.org/id/metropolitan-district-council/wolverhampton","705534","Midlands Truck & Van Limited","83607937","9.50","Services - Professional Fees","190448769","18/04/2018","Fleet Services","Fleet Management","R4400"
"Wolverhampton City Council","http://opendatacommunities.org/id/metropolitan-district-council/wolverhampton","705534","Midlands Truck & Van Limited","83607937","210.00","Services - Professional Fees","190448769","18/04/2018","Fleet Services","Fleet Management","R4400"
"Wolverhampton City Council","http://opendatacommunities.org/id/metropolitan-district-council/wolverhampton","705534","Midlands Truck & Van Limited","88426713","64.08","Equipment - Purchase","190442536","04/04/2018","Fleet Services","Fleet Management","R4000"
"Wolverhampton City Council","http://opendatacommunities.org/id/metropolitan-district-council/wolverhampton","705534","Midlands Truck & Van Limited","88426713","7.43","Equipment - Purchase","190442536","04/04/2018","Fleet Services","Fleet Management","R4000"
"Wolverhampton City Council","http://opendatacommunities.org/id/metropolitan-district-council/wolverhampton","705542","Midwest Electrical Services Limited","I14377","13,926.97","R&M - Departmental planned (external)","130194352","04/04/2018","Adult Education","Foyer Building","R2001"
"Wolverhampton City Council","http://opendatacommunities.org/id/metropolitan-district-council/wolverhampton","705542","Midwest Electrical Services Limited","I16120","115.00","R&M - Departmental planned (external)","130213184","25/04/2018","Maintenance Programme","Centralised R&M","R2001"
"Wolverhampton City Council","http://opendatacommunities.org/id/metropolitan-district-council/wolverhampton","705542","Midwest Electrical Services Limited","I16107","23.38","R&M - Departmental planned (external)","130212948","25/04/2018","Maintenance Programme","Centralised R&M","R2001"
"Wolverhampton City Council","http://opendatacommunities.org/id/metropolitan-district-council/wolverhampton","705542","Midwest Electrical Services Limited","I16032","23.38","R&M - Departmental planned (external)","130212071","25/04/2018","Bereavement Services","Cemeteries","R2001"
"Wolverhampton City Council","http://opendatacommunities.org/id/metropolitan-district-council/wolverhampton","705542","Midwest Electrical Services Limited","I16071","238.87","R&M - Departmental planned (external)","130212772","25/04/2018","Facilities Management","Magistrates","R2001"
"Wolverhampton City Council","http://opendatacommunities.org/id/metropolitan-district-council/wolverhampton","705542","Midwest Electrical Services Limited","I16073","255.05","R&M - Departmental planned (external)","130212774","25/04/2018","Maintenance Programme","Centralised R&M","R2001"
"Wolverhampton City Council","http://opendatacommunities.org/id/metropolitan-district-council/wolverhampton","705542","Midwest Electrical Services Limited","I16109","46.76","R&M - Departmental planned (external)","130212950","25/04/2018","Maintenance Programme","Centralised R&M","R2001"
"Wolverhampton City Council","http://opendatacommunities.org/id/metropolitan-district-council/wolverhampton","705542","Midwest Electrical Services Limited","I16025","101.31","R&M - Departmental planned (external)","130211806","25/04/2018","Maintenance Programme","Centralised R&M","R2001"
"Wolverhampton City Council","http://opendatacommunities.org/id/metropolitan-district-council/wolverhampton","705542","Midwest Electrical Services Limited","I16029","25.45","R&M - Departmental planned (external)","130211810","25/04/2018","Maintenance Programme","Centralised R&M","R2001"
"Wolverhampton City Council","http://opendatacommunities.org/id/metropolitan-district-council/wolverhampton","705542","Midwest Electrical Services Limited","I16115","347.58","R&M - Departmental planned (external)","130213179","25/04/2018","Maintenance Programme","Centralised R&M","R2001"
"Wolverhampton City Council","http://opendatacommunities.org/id/metropolitan-district-council/wolverhampton","705542","Midwest Electrical Services Limited","I16074","38.93","R&M - Departmental planned (external)","130212775","25/04/2018","Maintenance Programme","Centralised R&M","R2001"
"Wolverhampton City Council","http://opendatacommunities.org/id/metropolitan-district-council/wolverhampton","705542","Midwest Electrical Services Limited","I15805","14,095.05","R&M - Departmental planned (external)","130210276","13/04/2018","Maintenance Programme","Centralised R&M","R2001"
"Wolverhampton City Council","http://opendatacommunities.org/id/metropolitan-district-council/wolverhampton","705542","Midwest Electrical Services Limited","I15796","114.94","R&M - Departmental planned (external)","130210480","13/04/2018","Maintenance Programme","Centralised R&M","R2001"
"Wolverhampton City Council","http://opendatacommunities.org/id/metropolitan-district-council/wolverhampton","705542","Midwest Electrical Services Limited","I15797","75.34","R&M - Departmental planned (external)","130210481","13/04/2018","Maintenance Programme","Centralised R&M","R2001"
"Wolverhampton City Council","http://opendatacommunities.org/id/metropolitan-district-council/wolverhampton","705542","Midwest Electrical Services Limited","I15790","47.80","R&M - Departmental planned (external)","130210271","13/04/2018","Maintenance Programme","Centralised R&M","R2001"
"Wolverhampton City Council","http://opendatacommunities.org/id/metropolitan-district-council/wolverhampton","705542","Midwest Electrical Services Limited","I15793","368.23","R&M - Departmental planned (external)","130210274","13/04/2018","Visitor Economy","Yarah El Sherbini","R2001"
"Wolverhampton City Council","http://opendatacommunities.org/id/metropolitan-district-council/wolverhampton","705542","Midwest Electrical Services Limited","I15802","23.38","R&M - Departmental planned (external)","130210485","13/04/2018","Maintenance Programme","Centralised R&M","R2001"
"Wolverhampton City Council","http://opendatacommunities.org/id/metropolitan-district-council/wolverhampton","705542","Midwest Electrical Services Limited","I15876","40.92","R&M - Departmental planned (external)","130210689","18/04/2018","Maintenance Programme","Centralised R&M","R2001"
"Wolverhampton City Council","http://opendatacommunities.org/id/metropolitan-district-council/wolverhampton","705542","Midwest Electrical Services Limited","I15892","23.38","R&M - Departmental planned (external)","130211061","18/04/2018","Maintenance Programme","Centralised R&M","R2001"
"Wolverhampton City Council","http://opendatacommunities.org/id/metropolitan-district-council/wolverhampton","705542","Midwest Electrical Services Limited","I15875","495.00","R&M - Departmental planned (external)","130210688","18/04/2018","Cleaning","Priory Green","R2001"
"Wolverhampton City Council","http://opendatacommunities.org/id/metropolitan-district-council/wolverhampton","705542","Midwest Electrical Services Limited","I15866","23.38","R&M - Departmental planned (external)","130210680","18/04/2018","Maintenance Programme","Centralised R&M","R2001"
"Wolverhampton City Council","http://opendatacommunities.org/id/metropolitan-district-council/wolverhampton","705542","Midwest Electrical Services Limited","I15936","12,619.28","Construction and Conversion","130211239","20/04/2018","-","Corporate Asset Management","C1100"
"Wolverhampton City Council","http://opendatacommunities.org/id/metropolitan-district-council/wolverhampton","705542","Midwest Electrical Services Limited","I15938","9,000.00","Construction and Conversion","130211241","20/04/2018","-","Corporate Asset Management","C1100"
"Wolverhampton City Council","http://opendatacommunities.org/id/metropolitan-district-council/wolverhampton","705542","Midwest Electrical Services Limited","I15890","59.87","R&M - Departmental planned (external)","130211059","18/04/2018","Maintenance Programme","Centralised R&M","R2001"
"Wolverhampton City Council","http://opendatacommunities.org/id/metropolitan-district-council/wolverhampton","705542","Midwest Electrical Services Limited","I15823","46.76","R&M - Departmental planned (external)","130210677","18/04/2018","Maintenance Programme","Centralised R&M","R2001"
"Wolverhampton City Council","http://opendatacommunities.org/id/metropolitan-district-council/wolverhampton","705542","Midwest Electrical Services Limited","I15879","185.99","R&M - Departmental planned (external)","130210691","18/04/2018","Maintenance Programme","Centralised R&M","R2001"
"Wolverhampton City Council","http://opendatacommunities.org/id/metropolitan-district-council/wolverhampton","705542","Midwest Electrical Services Limited","I15893","80.38","R&M - Departmental planned (external)","130211062","18/04/2018","Facilities Management","Caretakers Community Centre","R2001"
"Wolverhampton City Council","http://opendatacommunities.org/id/metropolitan-district-council/wolverhampton","705542","Midwest Electrical Services Limited","I15782","103.98","R&M - Departmental planned (external)","130210018","11/04/2018","Maintenance Programme","Centralised R&M","R2001"
"Wolverhampton City Council","http://opendatacommunities.org/id/metropolitan-district-council/wolverhampton","705542","Midwest Electrical Services Limited","I14122","684.11","R&M - Departmental planned (external)","130191762","25/04/2018","Maintenance Programme","Centralised R&M","R2001"
"Wolverhampton City Council","http://opendatacommunities.org/id/metropolitan-district-council/wolverhampton","705542","Midwest Electrical Services Limited","I16066","37.67","R&M - Departmental planned (external)","130212767","25/04/2018","Facilities Management","Bilston Town Hall","R2001"
"Wolverhampton City Council","http://opendatacommunities.org/id/metropolitan-district-council/wolverhampton","705542","Midwest Electrical Services Limited","I16119","70.14","R&M - Departmental planned (external)","130213183","25/04/2018","Maintenance Programme","Centralised R&M","R2001"
"Wolverhampton City Council","http://opendatacommunities.org/id/metropolitan-district-council/wolverhampton","705542","Midwest Electrical Services Limited","I16070","29.68","R&M - Departmental planned (external)","130212771","25/04/2018","Maintenance Programme","Centralised R&M","R2001"
"Wolverhampton City Council","http://opendatacommunities.org/id/metropolitan-district-council/wolverhampton","705542","Midwest Electrical Services Limited","I15120","70.50","R&M - Departmental planned (external)","130210142","04/04/2018","Facilities Management","Old Town Hall (Others)","R2001"
"Wolverhampton City Council","http://opendatacommunities.org/id/metropolitan-district-council/wolverhampton","705542","Midwest Electrical Services Limited","I16026","46.76","R&M - Departmental planned (external)","130211807","25/04/2018","Maintenance Programme","Centralised R&M","R2001"
"Wolverhampton City Council","http://opendatacommunities.org/id/metropolitan-district-council/wolverhampton","705542","Midwest Electrical Services Limited","I16003","92.27","R&M - Departmental planned (external)","130211597","25/04/2018","Environmental Maintenance","Parks / Open Spaces - Repairs & Maintenance","R2001"
"Wolverhampton City Council","http://opendatacommunities.org/id/metropolitan-district-council/wolverhampton","705542","Midwest Electrical Services Limited","I16028","178.20","R&M - Departmental planned (external)","130211809","25/04/2018","Maintenance Programme","Centralised R&M","R2001"
"Wolverhampton City Council","http://opendatacommunities.org/id/metropolitan-district-council/wolverhampton","705542","Midwest Electrical Services Limited","I16031","23.38","R&M - Departmental planned (external)","130212070","25/04/2018","Facilities Management","Magistrates","R2001"
"Wolverhampton City Council","http://opendatacommunities.org/id/metropolitan-district-council/wolverhampton","705542","Midwest Electrical Services Limited","I16033","40.61","R&M - Departmental planned (external)","130212072","25/04/2018","Maintenance Programme","Centralised R&M","R2001"
"Wolverhampton City Council","http://opendatacommunities.org/id/metropolitan-district-council/wolverhampton","705542","Midwest Electrical Services Limited","I16113","118.42","R&M - Departmental planned (external)","130213177","25/04/2018","Schools","Pupil Referral Units - Braybrook Centre","R2001"
"Wolverhampton City Council","http://opendatacommunities.org/id/metropolitan-district-council/wolverhampton","705542","Midwest Electrical Services Limited","I16117","259.25","R&M - Departmental planned (external)","130213181","25/04/2018","Facilities Management","Culwell Street Depot","R2001"
"Wolverhampton City Council","http://opendatacommunities.org/id/metropolitan-district-council/wolverhampton","705542","Midwest Electrical Services Limited","I16069","23.38","R&M - Departmental planned (external)","130212770","25/04/2018","Maintenance Programme","Centralised R&M","R2001"
"Wolverhampton City Council","http://opendatacommunities.org/id/metropolitan-district-council/wolverhampton","705542","Midwest Electrical Services Limited","I16076","26.32","R&M - Departmental planned (external)","130212777","25/04/2018","Maintenance Programme","Centralised R&M","R2001"
"Wolverhampton City Council","http://opendatacommunities.org/id/metropolitan-district-council/wolverhampton","705542","Midwest Electrical Services Limited","I16062","416.43","R&M - Departmental planned (external)","130212763","25/04/2018","Maintenance Programme","Centralised R&M","R2001"
"Wolverhampton City Council","http://opendatacommunities.org/id/metropolitan-district-council/wolverhampton","705542","Midwest Electrical Services Limited","I15799","570.75","R&M - Departmental planned (external)","130210675","13/04/2018","Facilities Management","Parkfields Office Accomodation","R2001"
"Wolverhampton City Council","http://opendatacommunities.org/id/metropolitan-district-council/wolverhampton","705542","Midwest Electrical Services Limited","I15789","89.15","R&M - Departmental planned (external)","130210270","13/04/2018","Maintenance Programme","Centralised R&M","R2001"
"Wolverhampton City Council","http://opendatacommunities.org/id/metropolitan-district-council/wolverhampton","705542","Midwest Electrical Services Limited","I15798","141.80","R&M - Departmental planned (external)","130210482","13/04/2018","Maintenance Programme","Centralised R&M","R2001"
"Wolverhampton City Council","http://opendatacommunities.org/id/metropolitan-district-council/wolverhampton","705542","Midwest Electrical Services Limited","I159792","70.14","R&M - Departmental planned (external)","130210278","13/04/2018","Facilities Management","Hickman Avenue Depot","R2001"
"Wolverhampton City Council","http://opendatacommunities.org/id/metropolitan-district-council/wolverhampton","705542","Midwest Electrical Services Limited","I15801","23.38","R&M - Departmental planned (external)","130210484","13/04/2018","Maintenance Programme","Centralised R&M","R2001"
"Wolverhampton City Council","http://opendatacommunities.org/id/metropolitan-district-council/wolverhampton","705542","Midwest Electrical Services Limited","I15888","23.38","R&M - Departmental planned (external)","130211058","18/04/2018","Maintenance Programme","Centralised R&M","R2001"
"Wolverhampton City Council","http://opendatacommunities.org/id/metropolitan-district-council/wolverhampton","705542","Midwest Electrical Services Limited","I15830","16,479.44","R&M - Departmental planned (external)","130210679","18/04/2018","Corporate Asset Management","Centralised Planned Maintenance","R2001"
"Wolverhampton City Council","http://opendatacommunities.org/id/metropolitan-district-council/wolverhampton","705542","Midwest Electrical Services Limited","I15824","23.38","R&M - Departmental planned (external)","130210678","18/04/2018","Maintenance Programme","Centralised R&M","R2001"
"Wolverhampton City Council","http://opendatacommunities.org/id/metropolitan-district-council/wolverhampton","705542","Midwest Electrical Services Limited","I15940","12,306.84","Construction and Conversion","130211243","20/04/2018","-","Corporate Asset Management","C1100"
"Wolverhampton City Council","http://opendatacommunities.org/id/metropolitan-district-council/wolverhampton","705542","Midwest Electrical Services Limited","I15942","21,410.00","Construction and Conversion","130211245","20/04/2018","-","Corporate Asset Management","C1100"
"Wolverhampton City Council","http://opendatacommunities.org/id/metropolitan-district-council/wolverhampton","705542","Midwest Electrical Services Limited","I15897","36.36","R&M - Departmental planned (external)","130212257","18/04/2018","Maintenance Programme","Centralised R&M","R2001"
"Wolverhampton City Council","http://opendatacommunities.org/id/metropolitan-district-council/wolverhampton","705542","Midwest Electrical Services Limited","I15895","87.50","R&M - Departmental planned (external)","130212256","18/04/2018","Facilities Management","Caretakers Community Centre","R2001"
"Wolverhampton City Council","http://opendatacommunities.org/id/metropolitan-district-council/wolverhampton","705542","Midwest Electrical Services Limited","I15900","62.75","R&M - Departmental planned (external)","130211065","18/04/2018","Facilities Management","Magistrates","R2001"
"Wolverhampton City Council","http://opendatacommunities.org/id/metropolitan-district-council/wolverhampton","705542","Midwest Electrical Services Limited","I15885","55.48","R&M - Departmental planned (external)","130211055","18/04/2018","Maintenance Programme","Centralised R&M","R2001"
"Wolverhampton City Council","http://opendatacommunities.org/id/metropolitan-district-council/wolverhampton","705542","Midwest Electrical Services Limited","I15887","43.28","R&M - Departmental planned (external)","130211057","18/04/2018","Maintenance Programme","Centralised R&M","R2001"
"Wolverhampton City Council","http://opendatacommunities.org/id/metropolitan-district-council/wolverhampton","705542","Midwest Electrical Services Limited","I15780","23.38","R&M - Departmental planned (external)","130210017","11/04/2018","Facilities Management","Magistrates","R2001"
"Wolverhampton City Council","http://opendatacommunities.org/id/metropolitan-district-council/wolverhampton","705542","Midwest Electrical Services Limited","I16000","32.32","R&M - Departmental planned (external)","130211377","25/04/2018","Maintenance Programme","Centralised R&M","R2001"
"Wolverhampton City Council","http://opendatacommunities.org/id/metropolitan-district-council/wolverhampton","705542","Midwest Electrical Services Limited","I16114","67.76","R&M - Departmental planned (external)","130213178","25/04/2018","Markets","Bilston Market and Licensed Operations","R2001"
"Wolverhampton City Council","http://opendatacommunities.org/id/metropolitan-district-council/wolverhampton","705542","Midwest Electrical Services Limited","I16108","718.21","R&M - Departmental planned (external)","130212949","25/04/2018","Adult Education","Foyer Building","R2001"
"Wolverhampton City Council","http://opendatacommunities.org/id/metropolitan-district-council/wolverhampton","705542","Midwest Electrical Services Limited","I15941","12,543.29","Construction and Conversion","130211244","20/04/2018","-","Corporate Asset Management","C1100"
"Wolverhampton City Council","http://opendatacommunities.org/id/metropolitan-district-council/wolverhampton","705542","Midwest Electrical Services Limited","I15935","3,003.96","Construction and Conversion","130211238","20/04/2018","-","Corporate Asset Management","C1100"
"Wolverhampton City Council","http://opendatacommunities.org/id/metropolitan-district-council/wolverhampton","705542","Midwest Electrical Services Limited","I15939","42,799.02","Construction and Conversion","130211242","20/04/2018","-","Corporate Asset Management","C1100"
"Wolverhampton City Council","http://opendatacommunities.org/id/metropolitan-district-council/wolverhampton","705542","Midwest Electrical Services Limited","I15778","416.35","R&M - Departmental planned (external)","130210015","11/04/2018","Maintenance Programme","Centralised R&M","R2001"
"Wolverhampton City Council","http://opendatacommunities.org/id/metropolitan-district-council/wolverhampton","705542","Midwest Electrical Services Limited","I15872","70.14","R&M - Departmental planned (external)","130210685","18/04/2018","Facilities Management","i10 Facilities Management","R2001"
"Wolverhampton City Council","http://opendatacommunities.org/id/metropolitan-district-council/wolverhampton","705542","Midwest Electrical Services Limited","I15877","37.67","R&M - Departmental planned (external)","130210690","18/04/2018","Facilities Management","Victoria Square, Block 11","R2001"
"Wolverhampton City Council","http://opendatacommunities.org/id/metropolitan-district-council/wolverhampton","705542","Midwest Electrical Services Limited","I15817","52.56","R&M - Departmental planned (external)","130210489","18/04/2018","Facilities Management","Bilston Town Hall","R2001"
"Wolverhampton City Council","http://opendatacommunities.org/id/metropolitan-district-council/wolverhampton","705542","Midwest Electrical Services Limited","I15868","46.76","R&M - Departmental planned (external)","130210682","18/04/2018","Maintenance Programme","Centralised R&M","R2001"
"Wolverhampton City Council","http://opendatacommunities.org/id/metropolitan-district-council/wolverhampton","705542","Midwest Electrical Services Limited","I15873","89.15","R&M - Departmental planned (external)","130210686","18/04/2018","Maintenance Programme","Centralised R&M","R2001"
"Wolverhampton City Council","http://opendatacommunities.org/id/metropolitan-district-council/wolverhampton","705542","Midwest Electrical Services Limited","I14469","1,380.00","R&M - Departmental planned (external)","130194960","25/04/2018","Bereavement Services","Cemeteries","R2001"
"Wolverhampton City Council","http://opendatacommunities.org/id/metropolitan-district-council/wolverhampton","705542","Midwest Electrical Services Limited","I16063","55.36","R&M - Departmental planned (external)","130212764","25/04/2018","Facilities Management","Magistrates","R2001"
"Wolverhampton City Council","http://opendatacommunities.org/id/metropolitan-district-council/wolverhampton","705542","Midwest Electrical Services Limited","I16112","37.67","R&M - Departmental planned (external)","130213527","25/04/2018","Facilities Management","Victoria Square, Block 11","R2001"
"Wolverhampton City Council","http://opendatacommunities.org/id/metropolitan-district-council/wolverhampton","705542","Midwest Electrical Services Limited","I16023","23.38","R&M - Departmental planned (external)","130211804","25/04/2018","Maintenance Programme","Centralised R&M","R2001"
"Wolverhampton City Council","http://opendatacommunities.org/id/metropolitan-district-council/wolverhampton","705542","Midwest Electrical Services Limited","I16072","294.60","R&M - Departmental planned (external)","130212773","25/04/2018","Maintenance Programme","Centralised R&M","R2001"
"Wolverhampton City Council","http://opendatacommunities.org/id/metropolitan-district-council/wolverhampton","705542","Midwest Electrical Services Limited","I15998","42.83","Construction and Conversion","130211375","25/04/2018","-","Capital Maintenance - Structural Works","C1100"
"Wolverhampton City Council","http://opendatacommunities.org/id/metropolitan-district-council/wolverhampton","705542","Midwest Electrical Services Limited","I16067","23.38","R&M - Departmental planned (external)","130212768","25/04/2018","Maintenance Programme","Centralised R&M","R2001"
"Wolverhampton City Council","http://opendatacommunities.org/id/metropolitan-district-council/wolverhampton","705542","Midwest Electrical Services Limited","I16124","212.93","R&M - Departmental planned (external)","130213339","25/04/2018","Markets","Bilston Market and Licensed Operations","R2001"
"Wolverhampton City Council","http://opendatacommunities.org/id/metropolitan-district-council/wolverhampton","705542","Midwest Electrical Services Limited","I16123","23.38","R&M - Departmental planned (external)","130213338","25/04/2018","Maintenance Programme","Centralised R&M","R2001"
"Wolverhampton City Council","http://opendatacommunities.org/id/metropolitan-district-council/wolverhampton","705542","Midwest Electrical Services Limited","I15996","383.43","R&M - Departmental planned (external)","130211373","25/04/2018","Maintenance Programme","Centralised R&M","R2001"
"Wolverhampton City Council","http://opendatacommunities.org/id/metropolitan-district-council/wolverhampton","705542","Midwest Electrical Services Limited","I16064","37.67","R&M - Departmental planned (external)","130212765","25/04/2018","Facilities Management","Culwell Street Depot","R2001"
"Wolverhampton City Council","http://opendatacommunities.org/id/metropolitan-district-council/wolverhampton","705542","Midwest Electrical Services Limited","I16034","124.72","R&M - Departmental planned (external)","130212073","25/04/2018","Facilities Management","Culwell Street Depot","R2001"
"Wolverhampton City Council","http://opendatacommunities.org/id/metropolitan-district-council/wolverhampton","705542","Midwest Electrical Services Limited","I16027","26.32","R&M - Departmental planned (external)","130211808","25/04/2018","Maintenance Programme","Centralised R&M","R2001"
"Wolverhampton City Council","http://opendatacommunities.org/id/metropolitan-district-council/wolverhampton","705542","Midwest Electrical Services Limited","I16021","46.76","R&M - Departmental planned (external)","130211802","25/04/2018","Facilities Management","Magistrates","R2001"
"Wolverhampton City Council","http://opendatacommunities.org/id/metropolitan-district-council/wolverhampton","705542","Midwest Electrical Services Limited","I15794","345.19","R&M - Departmental planned (external)","130210275","13/04/2018","Maintenance Programme","Centralised R&M","R2001"
"Wolverhampton City Council","http://opendatacommunities.org/id/metropolitan-district-council/wolverhampton","705542","Midwest Electrical Services Limited","I15807","1,103.29","R&M - Departmental planned (external)","130210277","13/04/2018","School Planning & Resources","Other Support Services","R2001"
"Wolverhampton City Council","http://opendatacommunities.org/id/metropolitan-district-council/wolverhampton","705542","Midwest Electrical Services Limited","I15803","766.80","R&M - Departmental planned (external)","130210486","13/04/2018","Maintenance Programme","Centralised R&M","R2001"
"Wolverhampton City Council","http://opendatacommunities.org/id/metropolitan-district-council/wolverhampton","705542","Midwest Electrical Services Limited","I15788","113.48","R&M - Departmental planned (external)","130210269","13/04/2018","Facilities Management","Caretakers Community Centre","R2001"
"Wolverhampton City Council","http://opendatacommunities.org/id/metropolitan-district-council/wolverhampton","705542","Midwest Electrical Services Limited","I15792","70.14","R&M - Departmental planned (external)","130210273","13/04/2018","Facilities Management","Hickman Avenue Depot","R2001"
"Wolverhampton City Council","http://opendatacommunities.org/id/metropolitan-district-council/wolverhampton","705542","Midwest Electrical Services Limited","I15791","23.38","R&M - Departmental planned (external)","130210272","13/04/2018","Facilities Management","Caretakers Community Centre","R2001"
"Wolverhampton City Council","http://opendatacommunities.org/id/metropolitan-district-council/wolverhampton","705542","Midwest Electrical Services Limited","I15883","49,387.50","Construction and Conversion","130211054","18/04/2018","-","Corporate Asset Management","C1100"
"Wolverhampton City Council","http://opendatacommunities.org/id/metropolitan-district-council/wolverhampton","705542","Midwest Electrical Services Limited","I15822","23.38","R&M - Departmental planned (external)","130210676","18/04/2018","Maintenance Programme","Centralised R&M","R2001"
"Wolverhampton City Council","http://opendatacommunities.org/id/metropolitan-district-council/wolverhampton","705542","Midwest Electrical Services Limited","I15874","23.38","R&M - Departmental planned (external)","130210687","18/04/2018","Maintenance Programme","Centralised R&M","R2001"
"Wolverhampton City Council","http://opendatacommunities.org/id/metropolitan-district-council/wolverhampton","705542","Midwest Electrical Services Limited","18452","1,389.19","R&M - Departmental planned (external)","130207811","04/04/2018","Adult Education","Foyer Building","R2001"
"Wolverhampton City Council","http://opendatacommunities.org/id/metropolitan-district-council/wolverhampton","705542","Midwest Electrical Services Limited","I16024","29.23","R&M - Departmental planned (external)","130211805","25/04/2018","Maintenance Programme","Centralised R&M","R2001"
"Wolverhampton City Council","http://opendatacommunities.org/id/metropolitan-district-council/wolverhampton","705542","Midwest Electrical Services Limited","I16068","227.13","R&M - Departmental planned (external)","130212769","25/04/2018","Maintenance Programme","Centralised R&M","R2001"
"Wolverhampton City Council","http://opendatacommunities.org/id/metropolitan-district-council/wolverhampton","705542","Midwest Electrical Services Limited","I16118","296.05","R&M - Departmental planned (external)","130213182","25/04/2018","Maintenance Programme","Centralised R&M","R2001"
"Wolverhampton City Council","http://opendatacommunities.org/id/metropolitan-district-council/wolverhampton","705542","Midwest Electrical Services Limited","I16111","23.38","R&M - Departmental planned (external)","130213176","25/04/2018","Maintenance Programme","Centralised R&M","R2001"
"Wolverhampton City Council","http://opendatacommunities.org/id/metropolitan-district-council/wolverhampton","705542","Midwest Electrical Services Limited","I16077","129.00","R&M - Departmental planned (external)","130212778","25/04/2018","Facilities Management","Caretakers Community Centre","R2001"
"Wolverhampton City Council","http://opendatacommunities.org/id/metropolitan-district-council/wolverhampton","705542","Midwest Electrical Services Limited","I16065","23.38","R&M - Departmental planned (external)","130212766","25/04/2018","Facilities Management","Magistrates","R2001"
"Wolverhampton City Council","http://opendatacommunities.org/id/metropolitan-district-council/wolverhampton","705542","Midwest Electrical Services Limited","I15992","23.38","R&M - Departmental planned (external)","130211372","25/04/2018","Environmental Maintenance","Fountain Maintenance","R2001"
"Wolverhampton City Council","http://opendatacommunities.org/id/metropolitan-district-council/wolverhampton","705542","Midwest Electrical Services Limited","I15999","204.58","R&M - Departmental planned (external)","130211376","25/04/2018","Markets","Bilston Market and Licensed Operations","R2001"
"Wolverhampton City Council","http://opendatacommunities.org/id/metropolitan-district-council/wolverhampton","705542","Midwest Electrical Services Limited","I15997","49.36","Construction and Conversion","130211374","25/04/2018","-","Capital Maintenance - Structural Works","C1100"
"Wolverhampton City Council","http://opendatacommunities.org/id/metropolitan-district-council/wolverhampton","705542","Midwest Electrical Services Limited","I16061","38.08","R&M - Departmental planned (external)","130212762","25/04/2018","Maintenance Programme","Centralised R&M","R2001"
"Wolverhampton City Council","http://opendatacommunities.org/id/metropolitan-district-council/wolverhampton","705542","Midwest Electrical Services Limited","I16060","43.59","R&M - Departmental planned (external)","130212761","25/04/2018","Maintenance Programme","Centralised R&M","R2001"
"Wolverhampton City Council","http://opendatacommunities.org/id/metropolitan-district-council/wolverhampton","705542","Midwest Electrical Services Limited","I15804","114.45","R&M - Departmental planned (external)","130210487","13/04/2018","Adult Education","Foyer Building","R2001"
"Wolverhampton City Council","http://opendatacommunities.org/id/metropolitan-district-council/wolverhampton","705542","Midwest Electrical Services Limited","I15800","46.76","R&M - Departmental planned (external)","130210483","13/04/2018","Environmental Maintenance","Fountain Maintenance","R2001"
"Wolverhampton City Council","http://opendatacommunities.org/id/metropolitan-district-council/wolverhampton","705542","Midwest Electrical Services Limited","I15785","365.66","R&M - Departmental planned (external)","130210267","13/04/2018","Maintenance Programme","Centralised R&M","R2001"
"Wolverhampton City Council","http://opendatacommunities.org/id/metropolitan-district-council/wolverhampton","705542","Midwest Electrical Services Limited","I15787","72.74","R&M - Departmental planned (external)","130210268","13/04/2018","Facilities Management","Caretakers Community Centre","R2001"
"Wolverhampton City Council","http://opendatacommunities.org/id/metropolitan-district-council/wolverhampton","705542","Midwest Electrical Services Limited","I15806","3,078.25","R&M - Departmental planned (external)","130210488","13/04/2018","Markets","Wednesfield Street Market","R2001"
"Wolverhampton City Council","http://opendatacommunities.org/id/metropolitan-district-council/wolverhampton","705542","Midwest Electrical Services Limited","I15899","23.38","R&M - Departmental planned (external)","130211064","18/04/2018","Facilities Management","Caretakers Community Centre","R2001"
"Wolverhampton City Council","http://opendatacommunities.org/id/metropolitan-district-council/wolverhampton","705542","Midwest Electrical Services Limited","I15869","23.38","R&M - Departmental planned (external)","130210683","18/04/2018","Maintenance Programme","Centralised R&M","R2001"
"Wolverhampton City Council","http://opendatacommunities.org/id/metropolitan-district-council/wolverhampton","705542","Midwest Electrical Services Limited","I15870","27.37","R&M - Departmental planned (external)","130210684","18/04/2018","Maintenance Programme","Centralised R&M","R2001"
"Wolverhampton City Council","http://opendatacommunities.org/id/metropolitan-district-council/wolverhampton","705542","Midwest Electrical Services Limited","I15937","4,327.56","R&M - Departmental planned (external)","130211240","20/04/2018","Maintenance Programme","Centralised R&M","R2001"
"Wolverhampton City Council","http://opendatacommunities.org/id/metropolitan-district-council/wolverhampton","705542","Midwest Electrical Services Limited","I15871","98.90","R&M - Departmental planned (external)","130210907","18/04/2018","Facilities Management","Magistrates","R2001"
"Wolverhampton City Council","http://opendatacommunities.org/id/metropolitan-district-council/wolverhampton","705542","Midwest Electrical Services Limited","I15886","52.94","R&M - Departmental planned (external)","130211056","18/04/2018","Maintenance Programme","Centralised R&M","R2001"
"Wolverhampton City Council","http://opendatacommunities.org/id/metropolitan-district-council/wolverhampton","705542","Midwest Electrical Services Limited","I15896","76.57","R&M - Departmental planned (external)","130211063","18/04/2018","Facilities Management","Bilston Town Hall","R2001"
"Wolverhampton City Council","http://opendatacommunities.org/id/metropolitan-district-council/wolverhampton","705542","Midwest Electrical Services Limited","I15779","1,200.00","R&M - Departmental planned (external)","130210016","11/04/2018","Leisure Services","Bert Williams Leisure Centre Caf�","R2001"
"Wolverhampton City Council","http://opendatacommunities.org/id/metropolitan-district-council/wolverhampton","705542","Midwest Electrical Services Limited","I15867","46.76","R&M - Departmental planned (external)","130210681","18/04/2018","Parking Services","Shopmobility","R2001"
"Wolverhampton City Council","http://opendatacommunities.org/id/metropolitan-district-council/wolverhampton","705542","Midwest Electrical Services Limited","I16075","37.67","R&M - Departmental planned (external)","130212776","25/04/2018","Learning Disability Provider","Duke Street Bungalows","R2001"
"Wolverhampton City Council","http://opendatacommunities.org/id/metropolitan-district-council/wolverhampton","705542","Midwest Electrical Services Limited","I16035","69.69","R&M - Departmental planned (external)","130212258","25/04/2018","Maintenance Programme","Centralised R&M","R2001"
"Wolverhampton City Council","http://opendatacommunities.org/id/metropolitan-district-council/wolverhampton","705542","Midwest Electrical Services Limited","I16008","30,961.60","R&M - Departmental planned (external)","130211599","25/04/2018","Corporate Asset Management","Centralised Planned Maintenance","R2001"
"Wolverhampton City Council","http://opendatacommunities.org/id/metropolitan-district-council/wolverhampton","705542","Midwest Electrical Services Limited","I16022","58.45","R&M - Departmental planned (external)","130211803","25/04/2018","Maintenance Programme","Centralised R&M","R2001"
"Wolverhampton City Council","http://opendatacommunities.org/id/metropolitan-district-council/wolverhampton","705548","Mike Tivey","SFH1/2/2018","230.00","Services - Professional Fees","130211811","06/04/2018","Early Intervention","EIP Locality 1 - Eastfields","R4400"
"Wolverhampton City Council","http://opendatacommunities.org/id/metropolitan-district-council/wolverhampton","705548","Mike Tivey","SFH7/03/18","220.00","Services - Professional Fees","130212074","18/04/2018","Early Intervention","EIP Locality 7 � Low Hill","R4400"
"Wolverhampton City Council","http://opendatacommunities.org/id/metropolitan-district-council/wolverhampton","705548","Mike Tivey","SFH2/02/18","140.00","Services - Professional Fees","130211812","06/04/2018","Early Intervention","EIP Locality 2 � Bilston/Rocket Pool","R4400"
"Wolverhampton City Council","http://opendatacommunities.org/id/metropolitan-district-council/wolverhampton","705548","Mike Tivey","SFH1/3/2018","340.00","Services - Professional Fees","130213836","25/04/2018","Early Intervention","EIP Locality 1 - Eastfields","R4400"
"Wolverhampton City Council","http://opendatacommunities.org/id/metropolitan-district-council/wolverhampton","705548","Mike Tivey","SFH8/03/18","420.00","Services - Supplies and Services to service users","130212075","25/04/2018","Early Intervention","EIP Locality 8 � Children�s Village","R4408"
"Wolverhampton City Council","http://opendatacommunities.org/id/metropolitan-district-council/wolverhampton","705592","Mitchell Diesel Limited","132763","7.50","Equipment - Purchase","190448745","18/04/2018","Fleet Services","Fleet Management","R4000"
"Wolverhampton City Council","http://opendatacommunities.org/id/metropolitan-district-council/wolverhampton","705592","Mitchell Diesel Limited","132763","7.29","Equipment - Purchase","190448745","18/04/2018","Fleet Services","Fleet Management","R4000"
"Wolverhampton City Council","http://opendatacommunities.org/id/metropolitan-district-council/wolverhampton","705609","Mobile Mini UK Limited","7000759353","43.20","Equipment - Hire","130208371","04/04/2018","Leisure Services","Aldersley Leisure Village","R4001"
"Wolverhampton City Council","http://opendatacommunities.org/id/metropolitan-district-council/wolverhampton","705609","Mobile Mini UK Limited","7000759354","43.20","Hire of Plant","130208654","04/04/2018","Environmental Maintenance","Ground Maintenance West","R3201"
"Wolverhampton City Council","http://opendatacommunities.org/id/metropolitan-district-council/wolverhampton","705609","Mobile Mini UK Limited","7000790145","43.20","Equipment - Hire","130212076","25/04/2018","Leisure Services","Aldersley Leisure Village","R4001"
"Wolverhampton City Council","http://opendatacommunities.org/id/metropolitan-district-council/wolverhampton","705634","Morelock Signs Limited","0000205865","1,092.92","Materials","130209199","11/04/2018","Street Lighting","Signs Illuminated","R4007"
"Wolverhampton City Council","http://opendatacommunities.org/id/metropolitan-district-council/wolverhampton","705689","Multibrand Services Limited","T064451","4,400.00","Services - Consultants","130211600","18/04/2018","Learning Disability Provider","Learning Disabilities Management","R4404"
"Wolverhampton City Council","http://opendatacommunities.org/id/metropolitan-district-council/wolverhampton","705689","Multibrand Services Limited","T064451","320.00","Services - Consultants","130211600","18/04/2018","Learning Disability Provider","Learning Disabilities Management","R4404"
"Wolverhampton City Council","http://opendatacommunities.org/id/metropolitan-district-council/wolverhampton","705689","Multibrand Services Limited","T064451","125.00","Services - Consultants","130211600","18/04/2018","Learning Disability Provider","Learning Disabilities Management","R4404"
"Wolverhampton City Council","http://opendatacommunities.org/id/metropolitan-district-council/wolverhampton","705706","Music & Travel Tour Consultants Limited","MG/763","8,100.00","Services - Professional Fees","130212259","20/04/2018","Standards and Vulnerable Pupils","Music Support Team","R4400"
"Wolverhampton City Council","http://opendatacommunities.org/id/metropolitan-district-council/wolverhampton","705742","N. D. Brown Limited","118829","390.00","Hire of Vehicles","190443912","04/04/2018","Fleet Services","Fleet Management","R3200"
"Wolverhampton City Council","http://opendatacommunities.org/id/metropolitan-district-council/wolverhampton","705742","N. D. Brown Limited","118827","336.00","Hire of Vehicles","190443911","04/04/2018","Fleet Services","Fleet Management","R3200"
"Wolverhampton City Council","http://opendatacommunities.org/id/metropolitan-district-council/wolverhampton","705742","N. D. Brown Limited","118828","288.00","Hire of Vehicles","190448322","18/04/2018","Fleet Services","Fleet Management","R3200"
"Wolverhampton City Council","http://opendatacommunities.org/id/metropolitan-district-council/wolverhampton","705748","Nacro","SIO/008602","300.00","TPP - Independent Schools","130209750","04/04/2018","Standards and Vulnerable Pupils","SEN Education OOC","R5036"
"Wolverhampton City Council","http://opendatacommunities.org/id/metropolitan-district-council/wolverhampton","705748","Nacro","SIO/008503","825.00","TPP - Independent Schools","130213186","18/04/2018","Standards and Vulnerable Pupils","SEN Education OOC","R5036"
"Wolverhampton City Council","http://opendatacommunities.org/id/metropolitan-district-council/wolverhampton","705748","Nacro","SIO/008640","6,248.92","TPP - Other","130210692","18/04/2018","Early Intervention","Vulnerable Women","R5010"
"Wolverhampton City Council","http://opendatacommunities.org/id/metropolitan-district-council/wolverhampton","705751","Nalco Limited","9400473777","412.50","R&M - Departmental planned (external)","130209202","04/04/2018","Maintenance Programme","Civic Centre Repairs & Maintenance","R2001"
"Wolverhampton City Council","http://opendatacommunities.org/id/metropolitan-district-council/wolverhampton","705780","National Back Exchange","3811","110.00","Training Expenses","130210279","11/04/2018","Adult Education","Direct Delivery Team ( L.& D.)","R1650"
"Wolverhampton City Council","http://opendatacommunities.org/id/metropolitan-district-council/wolverhampton","705813","NCC Group Sec.Serv.Limited. (Ngs Secure)","068422","3,210.00","Subscriptions","130210909","04/04/2018","ICTS","Strategic ICTS (ICT Service Budget)","R4701"
"Wolverhampton City Council","http://opendatacommunities.org/id/metropolitan-district-council/wolverhampton","705838","Network Rail Infrastructure Ltd","1225066","15,197.90","External Professional Fees","130210019","06/04/2018","-","GF - Interchange - Ph2 Train Station/MSCP/Metro Extension","C6002"
"Wolverhampton City Council","http://opendatacommunities.org/id/metropolitan-district-council/wolverhampton","705838","Network Rail Infrastructure Ltd","1204894","-155.67","External Professional Fees","130203345","06/04/2018","-","GF - Interchange - Ph2 Train Station/MSCP/Metro Extension","C6002"
"Wolverhampton City Council","http://opendatacommunities.org/id/metropolitan-district-council/wolverhampton","705838","Network Rail Infrastructure Ltd","1225907","15,830.60","External Professional Fees","130212483","25/04/2018","-","GF - Interchange - Ph2 Train Station/MSCP/Metro Extension","C6002"
"Wolverhampton City Council","http://opendatacommunities.org/id/metropolitan-district-council/wolverhampton","705854","Newauto Limited T/A Mogo (UK)","T28025","4,470.00","Signage and Labels","130208505","04/04/2018","Licensing","Licensing - Private Hire Vehicles","R4009"
"Wolverhampton City Council","http://opendatacommunities.org/id/metropolitan-district-council/wolverhampton","705854","Newauto Limited T/A Mogo (UK)","T28025","19.90","Signage and Labels","130208505","04/04/2018","Licensing","Licensing - Private Hire Vehicles","R4009"
"Wolverhampton City Council","http://opendatacommunities.org/id/metropolitan-district-council/wolverhampton","705854","Newauto Limited T/A Mogo (UK)","T28091","624.00","Signage and Labels","130211602","25/04/2018","Licensing","Licensing - Private Hire Vehicles","R4009"
"Wolverhampton City Council","http://opendatacommunities.org/id/metropolitan-district-council/wolverhampton","705854","Newauto Limited T/A Mogo (UK)","T28091","14.90","Signage and Labels","130211602","25/04/2018","Licensing","Licensing - Private Hire Vehicles","R4009"
"Wolverhampton City Council","http://opendatacommunities.org/id/metropolitan-district-council/wolverhampton","705854","Newauto Limited T/A Mogo (UK)","T28088","1,120.00","Signage and Labels","130211601","25/04/2018","Licensing","Licensing - Private Hire Vehicles","R4009"
"Wolverhampton City Council","http://opendatacommunities.org/id/metropolitan-district-council/wolverhampton","705854","Newauto Limited T/A Mogo (UK)","T28088","3,950.00","Signage and Labels","130211601","25/04/2018","Licensing","Licensing - Private Hire Vehicles","R4009"
"Wolverhampton City Council","http://opendatacommunities.org/id/metropolitan-district-council/wolverhampton","705855","Newbridge Preparatory School","NEF Summer 2018 INST 1","17,136.00","TPP - Private Nursery Education Funding","190451850","27/04/2018","Early Years","Early Years Universal Entitlement for 3 and 4 Year Olds","R5035"
"Wolverhampton City Council","http://opendatacommunities.org/id/metropolitan-district-council/wolverhampton","705856","Newbridge Surgery","M2017Q4.15SHIURFQ","100.00","TPP - Public Health Contracts","190451309","25/04/2018","Contracts","Sexual Health","R5060"
"Wolverhampton City Council","http://opendatacommunities.org/id/metropolitan-district-council/wolverhampton","705856","Newbridge Surgery","M2017Q415SHCIFBQ","80.00","TPP - Public Health Contracts","190451306","25/04/2018","Contracts","Sexual Health","R5060"
"Wolverhampton City Council","http://opendatacommunities.org/id/metropolitan-district-council/wolverhampton","705856","Newbridge Surgery","M2017Q415SHCIFRQ","135.00","TPP - Public Health Contracts","190451305","25/04/2018","Contracts","Sexual Health","R5060"
"Wolverhampton City Council","http://opendatacommunities.org/id/metropolitan-district-council/wolverhampton","705856","Newbridge Surgery","M2017Q4.15SHIUDRQ","100.00","TPP - Public Health Contracts","190451308","25/04/2018","Contracts","Sexual Health","R5060"
"Wolverhampton City Council","http://opendatacommunities.org/id/metropolitan-district-council/wolverhampton","705856","Newbridge Surgery","M2017Q415SHCIFIQ","250.00","TPP - Public Health Contracts","190451304","25/04/2018","Contracts","Sexual Health","R5060"
"Wolverhampton City Council","http://opendatacommunities.org/id/metropolitan-district-council/wolverhampton","705899","Nikki Downes","NEF Summer 2018 INST 1","4,016.25","TPP - Private Nursery Education Funding","190451850","27/04/2018","Early Years","Early Years Universal Entitlement for 3 and 4 Year Olds","R5035"
"Wolverhampton City Council","http://opendatacommunities.org/id/metropolitan-district-council/wolverhampton","705904","Nisbets PLC","16504956","133.20","Equipment - Purchase","130211378","25/04/2018","Older People Provider Services","Bradley Lodge Resource Centre","R4000"
"Wolverhampton City Council","http://opendatacommunities.org/id/metropolitan-district-council/wolverhampton","705904","Nisbets PLC","16155654","80.99","Cleaning Supplies and Materials","130211066","04/04/2018","Learning Disability Provider","Duke Street Bungalows","R2705"
"Wolverhampton City Council","http://opendatacommunities.org/id/metropolitan-district-council/wolverhampton","705907","NJB Physiotherapy Limited","59203","85.00","Services - Professional Fees","130210023","04/04/2018","Human Resources","HR Advice","R4400"
"Wolverhampton City Council","http://opendatacommunities.org/id/metropolitan-district-council/wolverhampton","705907","NJB Physiotherapy Limited","59242","126.00","Services - Professional Fees","130211248","18/04/2018","Human Resources","HR Advice","R4400"
"Wolverhampton City Council","http://opendatacommunities.org/id/metropolitan-district-council/wolverhampton","705907","NJB Physiotherapy Limited","59300","85.00","Services - Professional Fees","130211253","18/04/2018","Human Resources","HR Advice","R4400"
"Wolverhampton City Council","http://opendatacommunities.org/id/metropolitan-district-council/wolverhampton","705907","NJB Physiotherapy Limited","59319","85.00","Services - Professional Fees","130211257","18/04/2018","Human Resources","HR Advice","R4400"
"Wolverhampton City Council","http://opendatacommunities.org/id/metropolitan-district-council/wolverhampton","705907","NJB Physiotherapy Limited","59503","168.00","Services - Professional Fees","130213540","25/04/2018","Human Resources","HR Advice","R4400"
"Wolverhampton City Council","http://opendatacommunities.org/id/metropolitan-district-council/wolverhampton","705907","NJB Physiotherapy Limited","59345","40.00","Services - Professional Fees","130213535","25/04/2018","Human Resources","HR Advice","R4400"
"Wolverhampton City Council","http://opendatacommunities.org/id/metropolitan-district-council/wolverhampton","705907","NJB Physiotherapy Limited","59563","168.00","Services - Professional Fees","130213548","25/04/2018","Human Resources","HR Advice","R4400"
"Wolverhampton City Council","http://opendatacommunities.org/id/metropolitan-district-council/wolverhampton","705907","NJB Physiotherapy Limited","59502","168.00","Services - Professional Fees","130213539","25/04/2018","Human Resources","HR Advice","R4400"
"Wolverhampton City Council","http://opendatacommunities.org/id/metropolitan-district-council/wolverhampton","705907","NJB Physiotherapy Limited","59202","85.00","Services - Professional Fees","130210022","04/04/2018","Human Resources","HR Advice","R4400"
"Wolverhampton City Council","http://opendatacommunities.org/id/metropolitan-district-council/wolverhampton","705907","NJB Physiotherapy Limited","59251","85.00","Services - Professional Fees","130211251","18/04/2018","Human Resources","HR Advice","R4400"
"Wolverhampton City Council","http://opendatacommunities.org/id/metropolitan-district-council/wolverhampton","705907","NJB Physiotherapy Limited","59318","85.00","Services - Professional Fees","130211256","18/04/2018","Human Resources","HR Advice","R4400"
"Wolverhampton City Council","http://opendatacommunities.org/id/metropolitan-district-council/wolverhampton","705907","NJB Physiotherapy Limited","59284","168.00","Services - Professional Fees","130211252","18/04/2018","Human Resources","HR Advice","R4400"
"Wolverhampton City Council","http://opendatacommunities.org/id/metropolitan-district-council/wolverhampton","705907","NJB Physiotherapy Limited","59240","85.00","Services - Professional Fees","130211247","06/04/2018","Human Resources","HR Advice","R4400"
"Wolverhampton City Council","http://opendatacommunities.org/id/metropolitan-district-council/wolverhampton","705907","NJB Physiotherapy Limited","59340","147.00","Services - Professional Fees","130213532","20/04/2018","Human Resources","HR Advice","R4400"
"Wolverhampton City Council","http://opendatacommunities.org/id/metropolitan-district-council/wolverhampton","705907","NJB Physiotherapy Limited","59562","168.00","Services - Professional Fees","130213547","25/04/2018","Human Resources","HR Advice","R4400"
"Wolverhampton City Council","http://opendatacommunities.org/id/metropolitan-district-council/wolverhampton","705907","NJB Physiotherapy Limited","59343","168.00","Services - Professional Fees","130213534","25/04/2018","Human Resources","HR Advice","R4400"
"Wolverhampton City Council","http://opendatacommunities.org/id/metropolitan-district-council/wolverhampton","705907","NJB Physiotherapy Limited","59201","85.00","Services - Professional Fees","130210021","04/04/2018","Human Resources","HR Advice","R4400"
"Wolverhampton City Council","http://opendatacommunities.org/id/metropolitan-district-council/wolverhampton","705907","NJB Physiotherapy Limited","59250","85.00","Services - Professional Fees","130211250","18/04/2018","Human Resources","HR Advice","R4400"
"Wolverhampton City Council","http://opendatacommunities.org/id/metropolitan-district-council/wolverhampton","705907","NJB Physiotherapy Limited","59317","85.00","Services - Professional Fees","130211255","18/04/2018","Human Resources","HR Advice","R4400"
"Wolverhampton City Council","http://opendatacommunities.org/id/metropolitan-district-council/wolverhampton","705907","NJB Physiotherapy Limited","59321","85.00","Services - Professional Fees","130211259","18/04/2018","Human Resources","HR Advice","R4400"
"Wolverhampton City Council","http://opendatacommunities.org/id/metropolitan-district-council/wolverhampton","705907","NJB Physiotherapy Limited","59504","168.00","Services - Professional Fees","130213541","25/04/2018","Human Resources","HR Advice","R4400"
"Wolverhampton City Council","http://opendatacommunities.org/id/metropolitan-district-council/wolverhampton","705907","NJB Physiotherapy Limited","59342","189.00","Services - Professional Fees","130213533","25/04/2018","Human Resources","HR Advice","R4400"
"Wolverhampton City Council","http://opendatacommunities.org/id/metropolitan-district-council/wolverhampton","705907","NJB Physiotherapy Limited","59346","50.00","Services - Professional Fees","130213536","25/04/2018","Human Resources","HR Advice","R4400"
"Wolverhampton City Council","http://opendatacommunities.org/id/metropolitan-district-council/wolverhampton","705907","NJB Physiotherapy Limited","59249","85.00","Services - Professional Fees","130211249","18/04/2018","Human Resources","HR Advice","R4400"
"Wolverhampton City Council","http://opendatacommunities.org/id/metropolitan-district-council/wolverhampton","705907","NJB Physiotherapy Limited","59316","105.00","Services - Professional Fees","130211254","18/04/2018","Human Resources","HR Advice","R4400"
"Wolverhampton City Council","http://opendatacommunities.org/id/metropolitan-district-council/wolverhampton","705907","NJB Physiotherapy Limited","59320","85.00","Services - Professional Fees","130211258","18/04/2018","Human Resources","HR Advice","R4400"
"Wolverhampton City Council","http://opendatacommunities.org/id/metropolitan-district-council/wolverhampton","705913","No 5 Chambers Limited","8297","2,300.00","Services - Professional Fees","130213348","18/04/2018","Public Protection","EHTS Operational Costs","R4400"
"Wolverhampton City Council","http://opendatacommunities.org/id/metropolitan-district-council/wolverhampton","705913","No 5 Chambers Limited","968","675.00","Services - Professional Fees","130213965","25/04/2018","Planning","Planning","R4400"
"Wolverhampton City Council","http://opendatacommunities.org/id/metropolitan-district-council/wolverhampton","705913","No 5 Chambers Limited","8285","1,950.00","Services - Professional Fees","130213964","25/04/2018","Public Protection","EHTS Operational Costs","R4400"
"Wolverhampton City Council","http://opendatacommunities.org/id/metropolitan-district-council/wolverhampton","705913","No 5 Chambers Limited","500","750.00","Services - Professional Fees","130212484","11/04/2018","Legal Services","Centralised External Legal Costs","R4400"
"Wolverhampton City Council","http://opendatacommunities.org/id/metropolitan-district-council/wolverhampton","705913","No 5 Chambers Limited","2738","750.00","Services - Professional Fees","130213347","18/04/2018","Licensing","Licensing - Private Hire Vehicles","R4400"
"Wolverhampton City Council","http://opendatacommunities.org/id/metropolitan-district-council/wolverhampton","705914","Two by Two�s Day Nursery T/A Noah�s Ark","NEF Summer 2018 INST 1","24,786.00","TPP - Private Nursery Education Funding","190451850","27/04/2018","Early Years","Early Years Universal Entitlement for 3 and 4 Year Olds","R5035"
"Wolverhampton City Council","http://opendatacommunities.org/id/metropolitan-district-council/wolverhampton","705914","Two by Two�s Day Nursery T/A Noah�s Ark","TFT Summer 2018 Inst 1","14,713.92","Grant Payments","190451861","27/04/2018","Early Years","Early Years Entitlement Funding for Disadvantaged 2 Year Olds","R4700"
"Wolverhampton City Council","http://opendatacommunities.org/id/metropolitan-district-council/wolverhampton","705915","Noah�s Ark Environmental Services Ltd","WV1803","600.00","Services - Professional Fees","130212261","11/04/2018","Public Protection","Pest Control & Animal Welfare","R4400"
"Wolverhampton City Council","http://opendatacommunities.org/id/metropolitan-district-council/wolverhampton","705916","Nobisco Limited","529002","100.80","Cleaning Supplies and Materials","130211821","06/04/2018","Independent Living Service","Independent Living Service","R2705"
"Wolverhampton City Council","http://opendatacommunities.org/id/metropolitan-district-council/wolverhampton","705916","Nobisco Limited","530273","11.04","Cleaning Supplies and Materials","130213191","20/04/2018","Leisure Services","Central Baths","R2705"
"Wolverhampton City Council","http://opendatacommunities.org/id/metropolitan-district-council/wolverhampton","705916","Nobisco Limited","528997","3,690.24","Cleaning Supplies and Materials","130211816","06/04/2018","Cleaning","Cleaning of Buildings - General","R2705"
"Wolverhampton City Council","http://opendatacommunities.org/id/metropolitan-district-council/wolverhampton","705916","Nobisco Limited","527994","256.89","Cleaning Supplies and Materials","130211070","11/04/2018","Leisure Services","Bert Williams Leisure Centre","R2705"
"Wolverhampton City Council","http://opendatacommunities.org/id/metropolitan-district-council/wolverhampton","705916","Nobisco Limited","527991","1.66","Cleaning Supplies and Materials","130211067","11/04/2018","Bereavement Services","Coroners","R2705"
"Wolverhampton City Council","http://opendatacommunities.org/id/metropolitan-district-council/wolverhampton","705916","Nobisco Limited","527991","26.40","Cleaning Supplies and Materials","130211067","11/04/2018","Bereavement Services","Coroners","R2705"
"Wolverhampton City Council","http://opendatacommunities.org/id/metropolitan-district-council/wolverhampton","705916","Nobisco Limited","530405","129.59","Cleaning Supplies and Materials","130213351","25/04/2018","Learning Disability Provider","Ernest Bold Court","R2705"
"Wolverhampton City Council","http://opendatacommunities.org/id/metropolitan-district-council/wolverhampton","705916","Nobisco Limited","529179","62.59","Cleaning Supplies and Materials","130212077","25/04/2018","Catering","Civic Centre Catering","R2705"
"Wolverhampton City Council","http://opendatacommunities.org/id/metropolitan-district-council/wolverhampton","705916","Nobisco Limited","530403","22.89","Cleaning Supplies and Materials","130213349","25/04/2018","Learning Disability Provider","Community Pathways","R2705"
"Wolverhampton City Council","http://opendatacommunities.org/id/metropolitan-district-council/wolverhampton","705916","Nobisco Limited","530404","5.13","Cleaning Supplies and Materials","130213350","25/04/2018","Markets","Wholesale Market Facilities Management","R2705"
"Wolverhampton City Council","http://opendatacommunities.org/id/metropolitan-district-council/wolverhampton","705916","Nobisco Limited","531073","18.30","Cleaning Supplies and Materials","130213845","25/04/2018","Older People Provider Services","Reablement Team","R2705"
"Wolverhampton City Council","http://opendatacommunities.org/id/metropolitan-district-council/wolverhampton","705916","Nobisco Limited","531071","3,575.32","Cleaning Supplies and Materials","130213843","27/04/2018","Catering","Education Catering - General Overheads","R2705"
"Wolverhampton City Council","http://opendatacommunities.org/id/metropolitan-district-council/wolverhampton","705916","Nobisco Limited","531068","1,040.03","Cleaning Supplies and Materials","130213840","27/04/2018","Cleaning","Cleaning of Buildings - General","R2705"
"Wolverhampton City Council","http://opendatacommunities.org/id/metropolitan-district-council/wolverhampton","705916","Nobisco Limited","518376","25.58","Cleaning Supplies and Materials","130203544","04/04/2018","Catering","Education Catering - General Overheads","R2705"
"Wolverhampton City Council","http://opendatacommunities.org/id/metropolitan-district-council/wolverhampton","705916","Nobisco Limited","527426","130.94","Cleaning Supplies and Materials","130210694","04/04/2018","Visitor Economy","Bantock - Tea Rooms","R2705"
"Wolverhampton City Council","http://opendatacommunities.org/id/metropolitan-district-council/wolverhampton","705916","Nobisco Limited","479825","24.53","Cleaning Supplies and Materials","130168151","04/04/2018","Older People Provider Services","Bradley Lodge Resource Centre","R2705"
"Wolverhampton City Council","http://opendatacommunities.org/id/metropolitan-district-council/wolverhampton","705916","Nobisco Limited","527655","2,768.08","Cleaning Supplies and Materials","130210912","04/04/2018","Cleaning","Cleaning of Buildings - General","R2705"
"Wolverhampton City Council","http://opendatacommunities.org/id/metropolitan-district-council/wolverhampton","705916","Nobisco Limited","529796","171.40","Cleaning Supplies and Materials","130212640","18/04/2018","Learning Disability Provider","Ernest Bold Court","R2705"
"Wolverhampton City Council","http://opendatacommunities.org/id/metropolitan-district-council/wolverhampton","705916","Nobisco Limited","529798","180.81","Cleaning Supplies and Materials","130212642","18/04/2018","Specialist Support","Upper Pendeford Farm Short Breaks Centre","R2705"
"Wolverhampton City Council","http://opendatacommunities.org/id/metropolitan-district-council/wolverhampton","705916","Nobisco Limited","530068","1.76","Cleaning Supplies and Materials","130212952","18/04/2018","Learning Disability Provider","Ernest Bold Court","R2705"
"Wolverhampton City Council","http://opendatacommunities.org/id/metropolitan-district-council/wolverhampton","705916","Nobisco Limited","529653","63.28","Cleaning Supplies and Materials","130212487","18/04/2018","Visitor Economy","The Little Civic","R2705"
"Wolverhampton City Council","http://opendatacommunities.org/id/metropolitan-district-council/wolverhampton","705916","Nobisco Limited","528996","397.27","Cleaning Supplies and Materials","130211815","06/04/2018","Cleaning","Cleaning of Buildings - General","R2705"
"Wolverhampton City Council","http://opendatacommunities.org/id/metropolitan-district-council/wolverhampton","705916","Nobisco Limited","528360","69.40","Cleaning Supplies and Materials","130211261","06/04/2018","Leisure Services","Aldersley Leisure Village","R2705"
"Wolverhampton City Council","http://opendatacommunities.org/id/metropolitan-district-council/wolverhampton","705916","Nobisco Limited","528549","6.18","Cleaning Supplies and Materials","130211384","06/04/2018","Leisure Services","Bert Williams Leisure Centre Caf�","R2705"
"Wolverhampton City Council","http://opendatacommunities.org/id/metropolitan-district-council/wolverhampton","705916","Nobisco Limited","530276","6.38","Cleaning Supplies and Materials","130213193","20/04/2018","Older People Provider Services","Bradley Lodge Resource Centre","R2705"
"Wolverhampton City Council","http://opendatacommunities.org/id/metropolitan-district-council/wolverhampton","705916","Nobisco Limited","531488","19.42","Cleaning Supplies and Materials","130213967","27/04/2018","Visitor Economy","Art Gallery Tea Room","R2705"
"Wolverhampton City Council","http://opendatacommunities.org/id/metropolitan-district-council/wolverhampton","705916","Nobisco Limited","8688","-55.50","Cleaning Supplies and Materials","130213969","27/04/2018","Learning Disability Provider","Ernest Bold Court","R2705"
"Wolverhampton City Council","http://opendatacommunities.org/id/metropolitan-district-council/wolverhampton","705916","Nobisco Limited","529182","130.24","Cleaning Supplies and Materials","130212080","11/04/2018","Learning Disability Provider","Duke Street Bungalows","R2705"
"Wolverhampton City Council","http://opendatacommunities.org/id/metropolitan-district-council/wolverhampton","705916","Nobisco Limited","529180","62.59","Cleaning Supplies and Materials","130212078","11/04/2018","Catering","Education Catering - General Overheads","R2705"
"Wolverhampton City Council","http://opendatacommunities.org/id/metropolitan-district-council/wolverhampton","705916","Nobisco Limited","530407","26.40","Cleaning Supplies and Materials","130213352","25/04/2018","Visitor Economy","Art Gallery Tea Room","R2705"
"Wolverhampton City Council","http://opendatacommunities.org/id/metropolitan-district-council/wolverhampton","705916","Nobisco Limited","531066","0.09","Cleaning Supplies and Materials","130213838","25/04/2018","Catering","Civic Centre Catering","R2705"
"Wolverhampton City Council","http://opendatacommunities.org/id/metropolitan-district-council/wolverhampton","705916","Nobisco Limited","531066","5.19","Cleaning Supplies and Materials","130213838","25/04/2018","Catering","Civic Centre Catering","R2705"
"Wolverhampton City Council","http://opendatacommunities.org/id/metropolitan-district-council/wolverhampton","705916","Nobisco Limited","531067","89.95","Cleaning Supplies and Materials","130213839","25/04/2018","Cleaning","Cleaning of Buildings - General","R2705"
"Wolverhampton City Council","http://opendatacommunities.org/id/metropolitan-district-council/wolverhampton","705916","Nobisco Limited","531074","62.73","Cleaning Supplies and Materials","130213846","25/04/2018","Independent Living Service","Independent Living Service","R2705"
"Wolverhampton City Council","http://opendatacommunities.org/id/metropolitan-district-council/wolverhampton","705916","Nobisco Limited","527653","161.27","Cleaning Supplies and Materials","130210910","04/04/2018","Catering","Civic Centre Catering","R2705"
"Wolverhampton City Council","http://opendatacommunities.org/id/metropolitan-district-council/wolverhampton","705916","Nobisco Limited","531072","18.34","Cleaning Supplies and Materials","130213844","25/04/2018","Cleaning","Cleaning of Buildings - General","R2705"
"Wolverhampton City Council","http://opendatacommunities.org/id/metropolitan-district-council/wolverhampton","705916","Nobisco Limited","527992","16.65","Cleaning Supplies and Materials","130211068","04/04/2018","Visitor Economy","Art Gallery Tea Room","R2705"
"Wolverhampton City Council","http://opendatacommunities.org/id/metropolitan-district-council/wolverhampton","705916","Nobisco Limited","519328","107.60","Cleaning Supplies and Materials","130204196","04/04/2018","Catering","Education Catering - General Overheads","R2705"
"Wolverhampton City Council","http://opendatacommunities.org/id/metropolitan-district-council/wolverhampton","705916","Nobisco Limited","527425","36.04","Cleaning Supplies and Materials","130210693","04/04/2018","Environmental Maintenance","Parks - Ranger Service","R2705"
"Wolverhampton City Council","http://opendatacommunities.org/id/metropolitan-district-council/wolverhampton","705916","Nobisco Limited","528546","65.64","Cleaning Supplies and Materials","130211381","04/04/2018","Catering","Education Catering - General Overheads","R2705"
"Wolverhampton City Council","http://opendatacommunities.org/id/metropolitan-district-council/wolverhampton","705916","Nobisco Limited","529652","61.80","Cleaning Supplies and Materials","130212486","18/04/2018","Leisure Services","Bert Williams Leisure Centre","R2705"
"Wolverhampton City Council","http://opendatacommunities.org/id/metropolitan-district-council/wolverhampton","705916","Nobisco Limited","530070","366.16","Cleaning Supplies and Materials","130212954","18/04/2018","Environmental Maintenance","Parks - Ranger Service","R2705"
"Wolverhampton City Council","http://opendatacommunities.org/id/metropolitan-district-council/wolverhampton","705916","Nobisco Limited","529795","2,919.66","Cleaning Supplies and Materials","130212639","18/04/2018","Cleaning","Cleaning of Buildings - General","R2705"
"Wolverhampton City Council","http://opendatacommunities.org/id/metropolitan-district-council/wolverhampton","705916","Nobisco Limited","530069","492.28","Cleaning Supplies and Materials","130212953","18/04/2018","Learning Disability Provider","Duke Street Bungalows","R2705"
"Wolverhampton City Council","http://opendatacommunities.org/id/metropolitan-district-council/wolverhampton","705916","Nobisco Limited","528550","12.88","Cleaning Supplies and Materials","130211385","06/04/2018","Leisure Services","Bert Williams Leisure Centre Caf�","R2705"
"Wolverhampton City Council","http://opendatacommunities.org/id/metropolitan-district-council/wolverhampton","705916","Nobisco Limited","528204","31.61","Cleaning Supplies and Materials","130211135","06/04/2018","Learning Disability Provider","Community Pathways","R2705"
"Wolverhampton City Council","http://opendatacommunities.org/id/metropolitan-district-council/wolverhampton","705916","Nobisco Limited","528203","6.29","Cleaning Supplies and Materials","130211134","06/04/2018","Learning Disability Provider","Community Pathways","R2705"
"Wolverhampton City Council","http://opendatacommunities.org/id/metropolitan-district-council/wolverhampton","705916","Nobisco Limited","531070","2,698.54","Cleaning Supplies and Materials","130213842","25/04/2018","Cleaning","Cleaning of Buildings - General","R2705"
"Wolverhampton City Council","http://opendatacommunities.org/id/metropolitan-district-council/wolverhampton","705916","Nobisco Limited","529797","108.12","Cleaning Supplies and Materials","130212641","25/04/2018","Leisure Services","Bert Williams Leisure Centre Caf�","R2705"
"Wolverhampton City Council","http://opendatacommunities.org/id/metropolitan-district-council/wolverhampton","705916","Nobisco Limited","529181","338.82","Cleaning Supplies and Materials","130212079","25/04/2018","Catering","Civic Centre Catering","R2705"
"Wolverhampton City Council","http://opendatacommunities.org/id/metropolitan-district-council/wolverhampton","705916","Nobisco Limited","529651","14.98","Cleaning Supplies and Materials","130212485","25/04/2018","Learning Disability Provider","Duke Street Bungalows","R2705"
"Wolverhampton City Council","http://opendatacommunities.org/id/metropolitan-district-council/wolverhampton","705916","Nobisco Limited","528545","3.71","Cleaning Supplies and Materials","130211380","04/04/2018","Catering","Civic Centre Catering","R2705"
"Wolverhampton City Council","http://opendatacommunities.org/id/metropolitan-district-council/wolverhampton","705916","Nobisco Limited","526058","366.16","Cleaning Supplies and Materials","130209409","11/04/2018","Environmental Maintenance","Ground Maintenance West","R2705"
"Wolverhampton City Council","http://opendatacommunities.org/id/metropolitan-district-council/wolverhampton","705916","Nobisco Limited","529000","47.36","Cleaning Supplies and Materials","130211819","11/04/2018","Learning Disability Provider","Duke Street Bungalows","R2705"
"Wolverhampton City Council","http://opendatacommunities.org/id/metropolitan-district-council/wolverhampton","705916","Nobisco Limited","528551","4.94","Cleaning Supplies and Materials","130211386","11/04/2018","Older People Provider Services","Bradley Lodge Resource Centre","R2705"
"Wolverhampton City Council","http://opendatacommunities.org/id/metropolitan-district-council/wolverhampton","705916","Nobisco Limited","530271","37.79","Cleaning Supplies and Materials","130213189","27/04/2018","Catering","Education Catering - General Overheads","R2705"
"Wolverhampton City Council","http://opendatacommunities.org/id/metropolitan-district-council/wolverhampton","705916","Nobisco Limited","531489","135.46","Cleaning Supplies and Materials","130213968","27/04/2018","Visitor Economy","The Little Civic","R2705"
"Wolverhampton City Council","http://opendatacommunities.org/id/metropolitan-district-council/wolverhampton","705916","Nobisco Limited","520043","36.10","Cleaning Supplies and Materials","130204759","04/04/2018","Catering","Education Catering - General Overheads","R2705"
"Wolverhampton City Council","http://opendatacommunities.org/id/metropolitan-district-council/wolverhampton","705916","Nobisco Limited","526059","365.00","Cleaning Supplies and Materials","130209410","04/04/2018","Leisure Services","Aldersley Leisure Village","R2705"
"Wolverhampton City Council","http://opendatacommunities.org/id/metropolitan-district-council/wolverhampton","705916","Nobisco Limited","528552","44.52","Cleaning Supplies and Materials","130211387","04/04/2018","Visitor Economy","Art Gallery Tea Room","R2705"
"Wolverhampton City Council","http://opendatacommunities.org/id/metropolitan-district-council/wolverhampton","705916","Nobisco Limited","528547","71.21","Cleaning Supplies and Materials","130211382","04/04/2018","Catering","Civic Centre Catering","R2705"
"Wolverhampton City Council","http://opendatacommunities.org/id/metropolitan-district-council/wolverhampton","705916","Nobisco Limited","529794","105.60","Cleaning Supplies and Materials","130212638","18/04/2018","Cleaning","Cleaning of Buildings - General","R2705"
"Wolverhampton City Council","http://opendatacommunities.org/id/metropolitan-district-council/wolverhampton","705916","Nobisco Limited","529939","226.06","Cleaning Supplies and Materials","130212784","18/04/2018","Leisure Services","Bert Williams Leisure Centre","R2705"
"Wolverhampton City Council","http://opendatacommunities.org/id/metropolitan-district-council/wolverhampton","705916","Nobisco Limited","528998","137.11","Cleaning Supplies and Materials","130211817","18/04/2018","Catering","Education Catering - General Overheads","R2705"
"Wolverhampton City Council","http://opendatacommunities.org/id/metropolitan-district-council/wolverhampton","705916","Nobisco Limited","529934","187.77","Cleaning Supplies and Materials","130212779","18/04/2018","Visitor Economy","Northicote Farm","R2705"
"Wolverhampton City Council","http://opendatacommunities.org/id/metropolitan-district-council/wolverhampton","705916","Nobisco Limited","527993","25.50","Cleaning Supplies and Materials","130211069","04/04/2018","Visitor Economy","Art Gallery Tea Room","R2705"
"Wolverhampton City Council","http://opendatacommunities.org/id/metropolitan-district-council/wolverhampton","705916","Nobisco Limited","517560","19.72","Cleaning Supplies and Materials","130202754","04/04/2018","Catering","Education Catering - General Overheads","R2705"
"Wolverhampton City Council","http://opendatacommunities.org/id/metropolitan-district-council/wolverhampton","705916","Nobisco Limited","520991","188.41","Cleaning Supplies and Materials","130205321","04/04/2018","Catering","Education Catering - General Overheads","R2705"
"Wolverhampton City Council","http://opendatacommunities.org/id/metropolitan-district-council/wolverhampton","705916","Nobisco Limited","529323","59.73","Cleaning Supplies and Materials","130212262","18/04/2018","Visitor Economy","Bantock - Tea Rooms","R2705"
"Wolverhampton City Council","http://opendatacommunities.org/id/metropolitan-district-council/wolverhampton","705916","Nobisco Limited","529937","36.00","Cleaning Supplies and Materials","130212782","18/04/2018","Independent Living Service","Independent Living Service","R2705"
"Wolverhampton City Council","http://opendatacommunities.org/id/metropolitan-district-council/wolverhampton","705916","Nobisco Limited","529938","37.87","Cleaning Supplies and Materials","130212783","18/04/2018","Visitor Economy","Art Gallery Tea Room","R2705"
"Wolverhampton City Council","http://opendatacommunities.org/id/metropolitan-district-council/wolverhampton","705916","Nobisco Limited","529936","283.29","Cleaning Supplies and Materials","130212781","18/04/2018","Older People Provider Services","Bradley Lodge Resource Centre","R2705"
"Wolverhampton City Council","http://opendatacommunities.org/id/metropolitan-district-council/wolverhampton","705916","Nobisco Limited","527654","370.59","Cleaning Supplies and Materials","130210911","06/04/2018","Catering","Civic Centre Catering","R2705"
"Wolverhampton City Council","http://opendatacommunities.org/id/metropolitan-district-council/wolverhampton","705916","Nobisco Limited","530277","50.14","Cleaning Supplies and Materials","130213194","20/04/2018","Older People Provider Services","Bradley Lodge Resource Centre","R2705"
"Wolverhampton City Council","http://opendatacommunities.org/id/metropolitan-district-council/wolverhampton","705916","Nobisco Limited","529001","27.47","Cleaning Supplies and Materials","130211820","06/04/2018","Visitor Economy","Bantock - Tea Rooms","R2705"
"Wolverhampton City Council","http://opendatacommunities.org/id/metropolitan-district-council/wolverhampton","705916","Nobisco Limited","530278","54.90","Cleaning Supplies and Materials","130213195","25/04/2018","Older People Provider Services","Reablement Team","R2705"
"Wolverhampton City Council","http://opendatacommunities.org/id/metropolitan-district-council/wolverhampton","705916","Nobisco Limited","528544","57.86","Cleaning Supplies and Materials","130211379","04/04/2018","Catering","Civic Centre Catering","R2705"
"Wolverhampton City Council","http://opendatacommunities.org/id/metropolitan-district-council/wolverhampton","705916","Nobisco Limited","530272","169.40","Cleaning Supplies and Materials","130213190","25/04/2018","Cleaning","Cleaning of Buildings - General","R2705"
"Wolverhampton City Council","http://opendatacommunities.org/id/metropolitan-district-council/wolverhampton","705916","Nobisco Limited","531065","18.27","Cleaning Supplies and Materials","130213837","25/04/2018","Catering","Civic Centre Catering","R2705"
"Wolverhampton City Council","http://opendatacommunities.org/id/metropolitan-district-council/wolverhampton","705916","Nobisco Limited","529935","16.65","Cleaning Supplies and Materials","130212780","25/04/2018","Leisure Services","Bert Williams Leisure Centre Caf�","R2705"
"Wolverhampton City Council","http://opendatacommunities.org/id/metropolitan-district-council/wolverhampton","705916","Nobisco Limited","530863","229.99","Cleaning Supplies and Materials","130213729","25/04/2018","Catering","Civic Centre Catering","R2705"
"Wolverhampton City Council","http://opendatacommunities.org/id/metropolitan-district-council/wolverhampton","705916","Nobisco Limited","528548","503.02","Cleaning Supplies and Materials","130211383","11/04/2018","Learning Disability Provider","Duke Street Bungalows","R2705"
"Wolverhampton City Council","http://opendatacommunities.org/id/metropolitan-district-council/wolverhampton","705916","Nobisco Limited","528359","373.80","Cleaning Supplies and Materials","130211260","11/04/2018","Learning Disability Provider","Duke Street Bungalows","R2705"
"Wolverhampton City Council","http://opendatacommunities.org/id/metropolitan-district-council/wolverhampton","705916","Nobisco Limited","528999","274.58","Cleaning Supplies and Materials","130211818","11/04/2018","Leisure Services","Central Baths","R2705"
"Wolverhampton City Council","http://opendatacommunities.org/id/metropolitan-district-council/wolverhampton","705916","Nobisco Limited","530274","11.31","Cleaning Supplies and Materials","130213192","27/04/2018","Learning Disability Provider","Duke Street Bungalows","R2705"
"Wolverhampton City Council","http://opendatacommunities.org/id/metropolitan-district-council/wolverhampton","705916","Nobisco Limited","531487","32.78","Cleaning Supplies and Materials","130213966","27/04/2018","Learning Disability Provider","Duke Street Bungalows","R2705"
"Wolverhampton City Council","http://opendatacommunities.org/id/metropolitan-district-council/wolverhampton","705926","Normans (Burton-On-Trent) Limited","INV1182044","98.00","Equipment - Purchase","130209583","11/04/2018","Standards and Vulnerable Pupils","Music Support Team","R4000"
"Wolverhampton City Council","http://opendatacommunities.org/id/metropolitan-district-council/wolverhampton","705945","Northgate Public Services (UK) Limited","91404206","113,964.11","Computing - Purchase of Software","130213730","20/04/2018","Revenues & Benefits","Revenues","R4531"
"Wolverhampton City Council","http://opendatacommunities.org/id/metropolitan-district-council/wolverhampton","705946","Northgate Vehicle Hire Limited","SL04898128IN","57.92","Hire of Vehicles","190443995","04/04/2018","Fleet Services","Fleet Management","R3200"
"Wolverhampton City Council","http://opendatacommunities.org/id/metropolitan-district-council/wolverhampton","705946","Northgate Vehicle Hire Limited","SL04900790IN","45.90","Hire of Vehicles","190443996","04/04/2018","Fleet Services","Fleet Management","R3200"
"Wolverhampton City Council","http://opendatacommunities.org/id/metropolitan-district-council/wolverhampton","705946","Northgate Vehicle Hire Limited","SL04912079IN","208.95","Hire of Vehicles","190448357","18/04/2018","Fleet Services","Fleet Management","R3200"
"Wolverhampton City Council","http://opendatacommunities.org/id/metropolitan-district-council/wolverhampton","705946","Northgate Vehicle Hire Limited","SL04937842IN","326.76","Hire of Vehicles","190448363","18/04/2018","Fleet Services","Fleet Management","R3200"
"Wolverhampton City Council","http://opendatacommunities.org/id/metropolitan-district-council/wolverhampton","705946","Northgate Vehicle Hire Limited","SL04937873IN","204.00","Hire of Vehicles","190448378","18/04/2018","Fleet Services","Fleet Management","R3200"
"Wolverhampton City Council","http://opendatacommunities.org/id/metropolitan-district-council/wolverhampton","705946","Northgate Vehicle Hire Limited","SL04937852IN","428.40","Hire of Vehicles","190448368","18/04/2018","Fleet Services","Fleet Management","R3200"
"Wolverhampton City Council","http://opendatacommunities.org/id/metropolitan-district-council/wolverhampton","705946","Northgate Vehicle Hire Limited","SL04937859IN","214.20","Hire of Vehicles","190448371","18/04/2018","Fleet Services","Fleet Management","R3200"
"Wolverhampton City Council","http://opendatacommunities.org/id/metropolitan-district-council/wolverhampton","705946","Northgate Vehicle Hire Limited","SL04937846IN","292.53","Hire of Vehicles","190448365","18/04/2018","Fleet Services","Fleet Management","R3200"
"Wolverhampton City Council","http://opendatacommunities.org/id/metropolitan-district-council/wolverhampton","705946","Northgate Vehicle Hire Limited","SL04937877IN","292.53","Hire of Vehicles","190448380","18/04/2018","Fleet Services","Fleet Management","R3200"
"Wolverhampton City Council","http://opendatacommunities.org/id/metropolitan-district-council/wolverhampton","705946","Northgate Vehicle Hire Limited","SL04937900IN","181.86","Hire of Vehicles","190448391","18/04/2018","Fleet Services","Fleet Management","R3200"
"Wolverhampton City Council","http://opendatacommunities.org/id/metropolitan-district-council/wolverhampton","705946","Northgate Vehicle Hire Limited","SL04937885IN","292.53","Hire of Vehicles","190448384","18/04/2018","Fleet Services","Fleet Management","R3200"
"Wolverhampton City Council","http://opendatacommunities.org/id/metropolitan-district-council/wolverhampton","705946","Northgate Vehicle Hire Limited","SL04937904IN","214.20","Hire of Vehicles","190448393","18/04/2018","Fleet Services","Fleet Management","R3200"
"Wolverhampton City Council","http://opendatacommunities.org/id/metropolitan-district-council/wolverhampton","705946","Northgate Vehicle Hire Limited","SL04937913IN","316.20","Hire of Vehicles","190448396","18/04/2018","Fleet Services","Fleet Management","R3200"
"Wolverhampton City Council","http://opendatacommunities.org/id/metropolitan-district-council/wolverhampton","705946","Northgate Vehicle Hire Limited","SL04937902IN","326.76","Hire of Vehicles","190448392","18/04/2018","Fleet Services","Fleet Management","R3200"
"Wolverhampton City Council","http://opendatacommunities.org/id/metropolitan-district-council/wolverhampton","705946","Northgate Vehicle Hire Limited","SL04900791IN","65.58","Hire of Vehicles","190443997","04/04/2018","Fleet Services","Fleet Management","R3200"
"Wolverhampton City Council","http://opendatacommunities.org/id/metropolitan-district-council/wolverhampton","705946","Northgate Vehicle Hire Limited","SL04937832IN","292.53","Hire of Vehicles","190448359","18/04/2018","Fleet Services","Fleet Management","R3200"
"Wolverhampton City Council","http://opendatacommunities.org/id/metropolitan-district-council/wolverhampton","705946","Northgate Vehicle Hire Limited","SL04937869IN","292.53","Hire of Vehicles","190448376","18/04/2018","Fleet Services","Fleet Management","R3200"
"Wolverhampton City Council","http://opendatacommunities.org/id/metropolitan-district-council/wolverhampton","705946","Northgate Vehicle Hire Limited","SL04937854IN","214.20","Hire of Vehicles","190448369","18/04/2018","Fleet Services","Fleet Management","R3200"
"Wolverhampton City Council","http://opendatacommunities.org/id/metropolitan-district-council/wolverhampton","705946","Northgate Vehicle Hire Limited","SL04937867IN","320.25","Hire of Vehicles","190448375","18/04/2018","Fleet Services","Fleet Management","R3200"
"Wolverhampton City Council","http://opendatacommunities.org/id/metropolitan-district-council/wolverhampton","705946","Northgate Vehicle Hire Limited","SL04937839IN","326.76","Hire of Vehicles","190448362","18/04/2018","Fleet Services","Fleet Management","R3200"
"Wolverhampton City Council","http://opendatacommunities.org/id/metropolitan-district-council/wolverhampton","705946","Northgate Vehicle Hire Limited","SL04937881IN","326.76","Hire of Vehicles","190448382","18/04/2018","Fleet Services","Fleet Management","R3200"
"Wolverhampton City Council","http://opendatacommunities.org/id/metropolitan-district-council/wolverhampton","705946","Northgate Vehicle Hire Limited","SL04937890IN","278.60","Hire of Vehicles","190448386","18/04/2018","Fleet Services","Fleet Management","R3200"
"Wolverhampton City Council","http://opendatacommunities.org/id/metropolitan-district-council/wolverhampton","705946","Northgate Vehicle Hire Limited","SL04937887IN","214.20","Hire of Vehicles","190448385","18/04/2018","Fleet Services","Fleet Management","R3200"
"Wolverhampton City Council","http://opendatacommunities.org/id/metropolitan-district-council/wolverhampton","705946","Northgate Vehicle Hire Limited","SL04937896IN","181.86","Hire of Vehicles","190448389","18/04/2018","Fleet Services","Fleet Management","R3200"
"Wolverhampton City Council","http://opendatacommunities.org/id/metropolitan-district-council/wolverhampton","705946","Northgate Vehicle Hire Limited","SL04937922IN","181.86","Hire of Vehicles","190448400","18/04/2018","Fleet Services","Fleet Management","R3200"
"Wolverhampton City Council","http://opendatacommunities.org/id/metropolitan-district-council/wolverhampton","705946","Northgate Vehicle Hire Limited","SL04937920IN","214.20","Hire of Vehicles","190448399","18/04/2018","Fleet Services","Fleet Management","R3200"
"Wolverhampton City Council","http://opendatacommunities.org/id/metropolitan-district-council/wolverhampton","705946","Northgate Vehicle Hire Limited","IW03816093","47.27","Hire of Vehicles","190443993","04/04/2018","Fleet Services","Fleet Management","R3200"
"Wolverhampton City Council","http://opendatacommunities.org/id/metropolitan-district-council/wolverhampton","705946","Northgate Vehicle Hire Limited","IW03848059","31.07","Hire of Vehicles","190448356","18/04/2018","Fleet Services","Fleet Management","R3200"
"Wolverhampton City Council","http://opendatacommunities.org/id/metropolitan-district-council/wolverhampton","705946","Northgate Vehicle Hire Limited","SL04937834IN","326.76","Hire of Vehicles","190448360","18/04/2018","Fleet Services","Fleet Management","R3200"
"Wolverhampton City Council","http://opendatacommunities.org/id/metropolitan-district-council/wolverhampton","705946","Northgate Vehicle Hire Limited","SL04914646IN","102.18","Hire of Vehicles","190448358","18/04/2018","Fleet Services","Fleet Management","R3200"
"Wolverhampton City Council","http://opendatacommunities.org/id/metropolitan-district-council/wolverhampton","705946","Northgate Vehicle Hire Limited","SL04937850IN","326.76","Hire of Vehicles","190448367","18/04/2018","Fleet Services","Fleet Management","R3200"
"Wolverhampton City Council","http://opendatacommunities.org/id/metropolitan-district-council/wolverhampton","705946","Northgate Vehicle Hire Limited","SL04937847IN","292.53","Hire of Vehicles","190448366","18/04/2018","Fleet Services","Fleet Management","R3200"
"Wolverhampton City Council","http://opendatacommunities.org/id/metropolitan-district-council/wolverhampton","705946","Northgate Vehicle Hire Limited","SL04937863IN","214.20","Hire of Vehicles","190448373","18/04/2018","Fleet Services","Fleet Management","R3200"
"Wolverhampton City Council","http://opendatacommunities.org/id/metropolitan-district-council/wolverhampton","705946","Northgate Vehicle Hire Limited","SL04937844IN","311.20","Hire of Vehicles","190448364","18/04/2018","Fleet Services","Fleet Management","R3200"
"Wolverhampton City Council","http://opendatacommunities.org/id/metropolitan-district-council/wolverhampton","705946","Northgate Vehicle Hire Limited","SL04937915IN","214.20","Hire of Vehicles","190448397","18/04/2018","Fleet Services","Fleet Management","R3200"
"Wolverhampton City Council","http://opendatacommunities.org/id/metropolitan-district-council/wolverhampton","705946","Northgate Vehicle Hire Limited","SL04937892IN","181.86","Hire of Vehicles","190448387","18/04/2018","Fleet Services","Fleet Management","R3200"
"Wolverhampton City Council","http://opendatacommunities.org/id/metropolitan-district-council/wolverhampton","705946","Northgate Vehicle Hire Limited","SL04937906IN","181.86","Hire of Vehicles","190448394","18/04/2018","Fleet Services","Fleet Management","R3200"
"Wolverhampton City Council","http://opendatacommunities.org/id/metropolitan-district-council/wolverhampton","705946","Northgate Vehicle Hire Limited","SL04937883IN","304.08","Hire of Vehicles","190448383","18/04/2018","Fleet Services","Fleet Management","R3200"
"Wolverhampton City Council","http://opendatacommunities.org/id/metropolitan-district-council/wolverhampton","705946","Northgate Vehicle Hire Limited","SL04937879IN","292.53","Hire of Vehicles","190448381","18/04/2018","Fleet Services","Fleet Management","R3200"
"Wolverhampton City Council","http://opendatacommunities.org/id/metropolitan-district-council/wolverhampton","705946","Northgate Vehicle Hire Limited","IW03816094","134.07","Hire of Vehicles","190443994","04/04/2018","Fleet Services","Fleet Management","R3200"
"Wolverhampton City Council","http://opendatacommunities.org/id/metropolitan-district-council/wolverhampton","705946","Northgate Vehicle Hire Limited","SL04937837IN","326.76","Hire of Vehicles","190448361","18/04/2018","Fleet Services","Fleet Management","R3200"
"Wolverhampton City Council","http://opendatacommunities.org/id/metropolitan-district-council/wolverhampton","705946","Northgate Vehicle Hire Limited","SL04937875IN","326.76","Hire of Vehicles","190448379","18/04/2018","Fleet Services","Fleet Management","R3200"
"Wolverhampton City Council","http://opendatacommunities.org/id/metropolitan-district-council/wolverhampton","705946","Northgate Vehicle Hire Limited","SL04937860IN","278.60","Hire of Vehicles","190448372","18/04/2018","Fleet Services","Fleet Management","R3200"
"Wolverhampton City Council","http://opendatacommunities.org/id/metropolitan-district-council/wolverhampton","705946","Northgate Vehicle Hire Limited","SL04937856IN","292.53","Hire of Vehicles","190448370","18/04/2018","Fleet Services","Fleet Management","R3200"
"Wolverhampton City Council","http://opendatacommunities.org/id/metropolitan-district-council/wolverhampton","705946","Northgate Vehicle Hire Limited","SL04937871IN","214.20","Hire of Vehicles","190448377","18/04/2018","Fleet Services","Fleet Management","R3200"
"Wolverhampton City Council","http://opendatacommunities.org/id/metropolitan-district-council/wolverhampton","705946","Northgate Vehicle Hire Limited","SL04937865IN","311.20","Hire of Vehicles","190448374","18/04/2018","Fleet Services","Fleet Management","R3200"
"Wolverhampton City Council","http://opendatacommunities.org/id/metropolitan-district-council/wolverhampton","705946","Northgate Vehicle Hire Limited","SL04937894IN","181.86","Hire of Vehicles","190448388","18/04/2018","Fleet Services","Fleet Management","R3200"
"Wolverhampton City Council","http://opendatacommunities.org/id/metropolitan-district-council/wolverhampton","705946","Northgate Vehicle Hire Limited","SL04937911IN","181.86","Hire of Vehicles","190448395","18/04/2018","Fleet Services","Fleet Management","R3200"
"Wolverhampton City Council","http://opendatacommunities.org/id/metropolitan-district-council/wolverhampton","705946","Northgate Vehicle Hire Limited","SL04937898IN","303.03","Hire of Vehicles","190448390","18/04/2018","Fleet Services","Fleet Management","R3200"
"Wolverhampton City Council","http://opendatacommunities.org/id/metropolitan-district-council/wolverhampton","705946","Northgate Vehicle Hire Limited","SL04941452IN","106.81","Hire of Vehicles","190448402","18/04/2018","Fleet Services","Fleet Management","R3200"
"Wolverhampton City Council","http://opendatacommunities.org/id/metropolitan-district-council/wolverhampton","705946","Northgate Vehicle Hire Limited","SL04941452IN","8.93","Hire of Vehicles","190448402","18/04/2018","Fleet Services","Fleet Management","R3200"
"Wolverhampton City Council","http://opendatacommunities.org/id/metropolitan-district-council/wolverhampton","705946","Northgate Vehicle Hire Limited","SL04937925IN","121.24","Hire of Vehicles","190448401","18/04/2018","Fleet Services","Fleet Management","R3200"
"Wolverhampton City Council","http://opendatacommunities.org/id/metropolitan-district-council/wolverhampton","705946","Northgate Vehicle Hire Limited","SL04937917IN","214.20","Hire of Vehicles","190448398","18/04/2018","Fleet Services","Fleet Management","R3200"
"Wolverhampton City Council","http://opendatacommunities.org/id/metropolitan-district-council/wolverhampton","705954","Nottingham Rehab Supplies/Nrs Limited","97509103","80.54","Equipment - Purchase","130209584","11/04/2018","Independent Living Service","Independent Living Service","R4000"
"Wolverhampton City Council","http://opendatacommunities.org/id/metropolitan-district-council/wolverhampton","705957","Nova Training Limited","5209","6,341.77","TPP - Alternative Provision of Education","130213971","25/04/2018","Standards and Vulnerable Pupils","Post 16 SEN Provision","R5037"
"Wolverhampton City Council","http://opendatacommunities.org/id/metropolitan-district-council/wolverhampton","705966","NPOWER Limited-Mba Accounts Receivable","LGU63SVL","182.61","Electricity","190448466","18/04/2018","City Development","Southside","R2100"
"Wolverhampton City Council","http://opendatacommunities.org/id/metropolitan-district-council/wolverhampton","705966","NPOWER Limited-Mba Accounts Receivable","LGU6RGQ9","146.88","Electricity","190448465","18/04/2018","City Development","Southside","R2100"
"Wolverhampton City Council","http://opendatacommunities.org/id/metropolitan-district-council/wolverhampton","705966","NPOWER Limited-Mba Accounts Receivable","LGU659F2","1,071.32","Electricity","190448461","18/04/2018","Corporate Asset Management","Central Utilities to Recharge","R2100"
"Wolverhampton City Council","http://opendatacommunities.org/id/metropolitan-district-council/wolverhampton","705966","NPOWER Limited-Mba Accounts Receivable","LGU7GFFK","188.84","Electricity","190448467","18/04/2018","City Development","Southside","R2100"
"Wolverhampton City Council","http://opendatacommunities.org/id/metropolitan-district-council/wolverhampton","705978","Nuco Training Limited","INV151181","35.00","Exam Expenses (Non-Employee)","130211262","25/04/2018","Adult Education","Work Related Studies","R4630"
"Wolverhampton City Council","http://opendatacommunities.org/id/metropolitan-district-council/wolverhampton","705978","Nuco Training Limited","INV151181","20.00","Exam Expenses (Non-Employee)","130211262","25/04/2018","Adult Education","Discretionary Fund","R4630"
"Wolverhampton City Council","http://opendatacommunities.org/id/metropolitan-district-council/wolverhampton","705978","Nuco Training Limited","INV151181","5.00","Exam Expenses (Non-Employee)","130211262","25/04/2018","Adult Education","Staff Development","R4630"
"Wolverhampton City Council","http://opendatacommunities.org/id/metropolitan-district-council/wolverhampton","705978","Nuco Training Limited","INV151181","5.00","Exam Expenses (Non-Employee)","130211262","25/04/2018","Adult Education","Bursary Fund","R4630"
"Wolverhampton City Council","http://opendatacommunities.org/id/metropolitan-district-council/wolverhampton","705978","Nuco Training Limited","INV150648","120.00","Training Expenses","130210493","18/04/2018","Adult Education","Direct Delivery Team ( L.& D.)","R1650"
"Wolverhampton City Council","http://opendatacommunities.org/id/metropolitan-district-council/wolverhampton","705978","Nuco Training Limited","INV150648","26.00","Training Expenses","130210493","18/04/2018","Adult Education","Direct Delivery Team ( L.& D.)","R1650"
"Wolverhampton City Council","http://opendatacommunities.org/id/metropolitan-district-council/wolverhampton","705978","Nuco Training Limited","INV149640","64.62","Exam Expenses (Non-Employee)","130208511","04/04/2018","Adult Education","Work Related Studies","R4630"
"Wolverhampton City Council","http://opendatacommunities.org/id/metropolitan-district-council/wolverhampton","705978","Nuco Training Limited","INV149640","36.92","Exam Expenses (Non-Employee)","130208511","04/04/2018","Adult Education","Discretionary Fund","R4630"
"Wolverhampton City Council","http://opendatacommunities.org/id/metropolitan-district-council/wolverhampton","705978","Nuco Training Limited","INV149640","9.23","Exam Expenses (Non-Employee)","130208511","04/04/2018","Adult Education","Staff Development","R4630"
"Wolverhampton City Council","http://opendatacommunities.org/id/metropolitan-district-council/wolverhampton","705978","Nuco Training Limited","INV149640","9.23","Exam Expenses (Non-Employee)","130208511","04/04/2018","Adult Education","Bursary Fund","R4630"
"Wolverhampton City Council","http://opendatacommunities.org/id/metropolitan-district-council/wolverhampton","705978","Nuco Training Limited","INV149545","845.00","Training Expenses","130208374","04/04/2018","Adult Education","Direct Delivery Team ( L.& D.)","R1650"
"Wolverhampton City Council","http://opendatacommunities.org/id/metropolitan-district-council/wolverhampton","705978","Nuco Training Limited","INV149639","3.50","Exam Expenses (Non-Employee)","130208510","04/04/2018","Adult Education","Work Related Studies","R4630"
"Wolverhampton City Council","http://opendatacommunities.org/id/metropolitan-district-council/wolverhampton","705978","Nuco Training Limited","INV149639","2.00","Exam Expenses (Non-Employee)","130208510","04/04/2018","Adult Education","Discretionary Fund","R4630"
"Wolverhampton City Council","http://opendatacommunities.org/id/metropolitan-district-council/wolverhampton","705978","Nuco Training Limited","INV149639","0.50","Exam Expenses (Non-Employee)","130208510","04/04/2018","Adult Education","Staff Development","R4630"
"Wolverhampton City Council","http://opendatacommunities.org/id/metropolitan-district-council/wolverhampton","705978","Nuco Training Limited","INV149639","0.50","Exam Expenses (Non-Employee)","130208510","04/04/2018","Adult Education","Bursary Fund","R4630"
"Wolverhampton City Council","http://opendatacommunities.org/id/metropolitan-district-council/wolverhampton","705995","Oakley�S Limited","171648","11.16","Services - Professional Fees","190443938","04/04/2018","Fleet Services","Fleet Management","R4400"
"Wolverhampton City Council","http://opendatacommunities.org/id/metropolitan-district-council/wolverhampton","705995","Oakley�S Limited","171648","11.70","Services - Professional Fees","190443938","04/04/2018","Fleet Services","Fleet Management","R4400"
"Wolverhampton City Council","http://opendatacommunities.org/id/metropolitan-district-council/wolverhampton","705995","Oakley�S Limited","171648","8.10","Services - Professional Fees","190443938","04/04/2018","Fleet Services","Fleet Management","R4400"
"Wolverhampton City Council","http://opendatacommunities.org/id/metropolitan-district-council/wolverhampton","705995","Oakley�S Limited","171937","29.04","Equipment - Purchase","190451775","27/04/2018","Fleet Services","Fleet Management","R4000"
"Wolverhampton City Council","http://opendatacommunities.org/id/metropolitan-district-council/wolverhampton","705995","Oakley�S Limited","171937","26.02","Equipment - Purchase","190451775","27/04/2018","Fleet Services","Fleet Management","R4000"
"Wolverhampton City Council","http://opendatacommunities.org/id/metropolitan-district-council/wolverhampton","705995","Oakley�S Limited","171909","28.97","Equipment - Purchase","190449716","20/04/2018","Fleet Services","Fleet Management","R4000"
"Wolverhampton City Council","http://opendatacommunities.org/id/metropolitan-district-council/wolverhampton","705995","Oakley�S Limited","170266","307.07","Equipment - Purchase","190446847","11/04/2018","Fleet Services","Fleet Management","R4000"
"Wolverhampton City Council","http://opendatacommunities.org/id/metropolitan-district-council/wolverhampton","705995","Oakley�S Limited","171564A","55.00","Plant, Equipment, Machinery & Computer Hardware","130210696","04/04/2018","-","Vehicles (Procurement)","C3000"
"Wolverhampton City Council","http://opendatacommunities.org/id/metropolitan-district-council/wolverhampton","705995","Oakley�S Limited","171943","8.55","Equipment - Purchase","190451776","27/04/2018","Fleet Services","Fleet Management","R4000"
"Wolverhampton City Council","http://opendatacommunities.org/id/metropolitan-district-council/wolverhampton","705995","Oakley�S Limited","171943","25.87","Equipment - Purchase","190451776","27/04/2018","Fleet Services","Fleet Management","R4000"
